Workbook

Sheet Home
B1: =D4&" PCN Funding Stream Calculator and ARRS Tracker 23/24" -> PCN Funding Stream Calculator and ARRS Tracker 23/24 | P1: Developed by Steve Rudd: stephen.rudd@nhs.net
D3: Dropdown | I3: List Sizes 23/24 | J3: Weighted | K3: Actual | L3: Adj'd | N3: Last Updated by PCN: | P3: 2023-04-18T11:29:07
B4: Select your PCN: | J4: =IF(D4="","",VLOOKUP(D4,PCNs[#All],2,FALSE)) ->  | K4: =IF(D4="","",VLOOKUP(D4,PCNs[#All],3,FALSE)) ->  | L4: =IF(D4="","",VLOOKUP(D4,PCNs[#All],5,FALSE)) ->  | N4: ARR salaries entered up to: | P4: ='ARRS Summary'!H2 -> Not Yet Entered
B6: Workforce
B14: Other Funding
O25: ="Copyright © 2022. All Rights Reserved.v3.0, released April 2023" -> Copyright © 2022. All Rights Reserved.v3.0, released April 2023

Sheet ARRS Summary (hidden)
B1: =Home!D4&" ARR Workforce Position and Forecast 23/24" -> ARR Workforce Position and Forecast 23/24 | J1: Developed by Steve Rudd: stephen.rudd@nhs.net
C2: Last Updated: | E2: 2023-04-18T11:29:07 | G2: ARR salaries entered up to: | H2: =_xlfn.IFS(I2=12,"Mar 24",I2=11,"Feb 24",I2=10,"Jan 24",I2=9,"Dec 23",I2=8,"Nov 23",I2=7,"Oct 23",I2=6,"Sept 23",I2=5,"Aug 23",I2=4,"Jul 23",I2=3,"Jun 23",I2=2,"May 23",I2=1,"Apr 23",I2=0,"Not Yet Entered") -> Not Yet Entered | I2: =_xlfn.IFS('ARR Staff'!BY1<>"",12,'ARR Staff'!BT1<>"",11,'ARR Staff'!BO1<>"",10,'ARR Staff'!BJ1<>"",9,'ARR Staff'!BE1<>"",8,'ARR Staff'!AZ1<>"",7,'ARR Staff'!AU1<>"",6,'ARR Staff'!AP1<>"",5,'ARR Staff'!AK1<>"",4,'ARR Staff'!AF1<>"",3,'ARR Staff'!AA1<>"",2,'ARR Staff'!V1<>"",1,'ARR Staff'!V1="",0) -> 0
I3: Further 23/24 Analysis
B4: Population | D4: Annual ARR budget | E4: Forecast Spend (based on avg claim) | F4: PCN Forecast Over/Underspend | I4: ="ARR budget YTD ("&_xlfn.IFS(I2=12,"Mar 24",I2=11,"Feb 24",I2=10,"Jan 24",I2=9,"Dec 23",I2=8,"Nov 23",I2=7,"Oct 23",I2=6,"Sept 23",I2=5,"Aug 23",I2=4,"Jul 23",I2=3,"Jun 23",I2=2,"May 23",I2=1,"Apr 23",I2=0,"N/A")&")" -> ARR budget YTD (N/A) | J4: ="Spend YTD (" & _xlfn.IFS(I2=12,"Mar 24",I2=11,"Feb 24",I2=10,"Jan 24",I2=9,"Dec 23",I2=8,"Nov 23",I2=7,"Oct 23",I2=6,"Sept 23",I2=5,"Aug 23",I2=4,"Jul 23",I2=3,"Jun 23",I2=2,"May 23",I2=1,"Apr 23",I2=0,"N/A")&")" -> Spend YTD (N/A) | N4: Y/E Forecast (latest month) | O4: ="ARR Residual Cost to Practices/PCN YTD (" & _xlfn.IFS(I2=12,"Mar 24",I2=11,"Feb 24",I2=10,"Jan 24",I2=9,"Dec 23",I2=8,"Nov 23",I2=7,"Oct 23",I2=6,"Sept 23",I2=5,"Aug 23",I2=4,"Jul 23",I2=3,"Jun 23",I2=2,"May 23",I2=1,"Apr 23",I2=0,"N/A")&")" -> ARR Residual Cost to Practices/PCN YTD (N/A) | Q4: Y/E Forecast residual cost
B5: Year | C5: Weighted
B6: 2023/24 | C6: =Home!$J$4 ->  | D6: =IF(C6="","",C6*22.671) ->  | E6: =IF(C6="","",IF('ARR Staff'!V1="",SUM(F13:F30),SUM(SUM('ARR Staff'!V1,'ARR Staff'!AA1,'ARR Staff'!AF1,'ARR Staff'!AK1,'ARR Staff'!AP1,'ARR Staff'!AU1,'ARR Staff'!AZ1,'ARR Staff'!BE1,'ARR Staff'!BJ1,'ARR Staff'!BO1,'ARR Staff'!BT1,'ARR Staff'!BY1))/I2*12)+M32) ->  | F6: =IF(C6="","",E6-D6) ->  | I6: =IF(C6="","",D6/12*I2) ->  | J6: =SUM('ARR Staff'!V1,'ARR Staff'!AA1,'ARR Staff'!AF1,'ARR Staff'!AK1,'ARR Staff'!AP1,'ARR Staff'!AU1,'ARR Staff'!AZ1,'ARR Staff'!BE1,'ARR Staff'!BJ1,'ARR Staff'!BO1,'ARR Staff'!BT1,'ARR Staff'!BY1) -> 0 | N6: =IF(I2=0,E6,SUM(J6,M32,_xlfn.IFS('ARR Staff'!BY1<>"",0,'ARR Staff'!BT1<>"",'ARR Staff'!BT1,'ARR Staff'!BO1<>"",'ARR Staff'!BO1*2,'ARR Staff'!BJ1<>"",'ARR Staff'!BJ1*3,'ARR Staff'!BE1<>"",'ARR Staff'!BE1*4,'ARR Staff'!AZ1<>"",'ARR Staff'!AZ1*5,'ARR Staff'!AU1<>"",'ARR Staff'!AU1*6,'ARR Staff'!AP1<>"",'ARR Staff'!AP1*7,'ARR Staff'!AK1<>"",'ARR Staff'!AK1*8,'ARR Staff'!AF1<>"",'ARR Staff'!AF1*9,'ARR Staff'!AA1<>"",'ARR Staff'!AA1*10,'ARR Staff'!V1<>"",'ARR Staff'!V1*11))) ->  | O6: ='ARR Staff'!CC1+'ARR Staff'!CB1 -> 0 | Q6: =IF(I2=0,"N/A",O6/I2*12) -> N/A
B10: Workforce Summary - ARRS Staff Currently in Post | G10: Forecast Reductions/Additions | I10: 2023/24
B11: Total ARR WTE PCN Roles As At: | E11: =IF(AND('ARR Staff'!C5="",'ARR Staff'!V1=""),H2,IF(AND('ARR Staff'!C5<>"",'ARR Staff'!V1=""),"Apr 23",H2)) -> Not Yet Entered | G11: Additional PCN Role | I11: Change | J11: Month | K11: MthAsNo | L11: In year total | M11: In year cost | N11: New Total
B13: Clinical Pharmacist | E13: =SUMIFS('ARR Staff'!$N:$N,'ARR Staff'!$I:$I,'ARRS Summary'!B13,'ARR Staff'!$P:$P,"") -> 0 | F13: =E13*Data!H4 -> 0 | G13: Clinical Pharmacist (B7-8a) | K13: =IF(J13="","",IF(J13="April",1,IF(J13="May",0.9167,IF(J13="June",0.8333,IF(J13="July",0.75,IF(J13="Aug",0.67,IF(J13="Sept",0.58333,IF(J13="Oct",0.5,IF(J13="Nov",0.4167,IF(J13="Dec",0.3333,IF(J13="Jan",0.25,IF(J13="Feb",0.1667,0.083)))))))))))*I13) ->  | L13: =IF(I13="","",SUM(E13+K13)) ->  | M13: =IF(I13="","",K13*Data!H4) ->  | N13: =E13+I13 -> 0
B14: Pharmacy Technician | E14: =SUMIFS('ARR Staff'!$N:$N,'ARR Staff'!$I:$I,'ARRS Summary'!B14,'ARR Staff'!$P:$P,"") -> 0 | F14: =E14*Data!H5 -> 0 | G14: Pharmacy Technician (B5) | K14: =IF(J14="","",IF(J14="April",1,IF(J14="May",0.9167,IF(J14="June",0.8333,IF(J14="July",0.75,IF(J14="Aug",0.67,IF(J14="Sept",0.58333,IF(J14="Oct",0.5,IF(J14="Nov",0.4167,IF(J14="Dec",0.3333,IF(J14="Jan",0.25,IF(J14="Feb",0.1667,0.083)))))))))))*I14) ->  | M14: =IF(I14="","",K14*Data!H5) ->  | N14: 0
B15: Paramedic | E15: =SUMIFS('ARR Staff'!$N:$N,'ARR Staff'!$I:$I,'ARRS Summary'!B15,'ARR Staff'!$P:$P,"") -> 0 | F15: =E15*Data!H6 -> 0 | G15: Paramedic (B7) | K15: =IF(J15="","",IF(J15="April",1,IF(J15="May",0.9167,IF(J15="June",0.8333,IF(J15="July",0.75,IF(J15="Aug",0.67,IF(J15="Sept",0.58333,IF(J15="Oct",0.5,IF(J15="Nov",0.4167,IF(J15="Dec",0.3333,IF(J15="Jan",0.25,IF(J15="Feb",0.1667,0.083)))))))))))*I15) ->  | M15: =IF(I15="","",K15*Data!H6) ->  | N15: 0
B16: Physiotherapist | E16: =SUMIFS('ARR Staff'!$N:$N,'ARR Staff'!$I:$I,'ARRS Summary'!B16,'ARR Staff'!$P:$P,"") -> 0 | F16: =E16*Data!H7 -> 0 | G16: Physiotherapist (B7-8a) | K16: =IF(J16="","",IF(J16="April",1,IF(J16="May",0.9167,IF(J16="June",0.8333,IF(J16="July",0.75,IF(J16="Aug",0.67,IF(J16="Sept",0.58333,IF(J16="Oct",0.5,IF(J16="Nov",0.4167,IF(J16="Dec",0.3333,IF(J16="Jan",0.25,IF(J16="Feb",0.1667,0.083)))))))))))*I16) ->  | M16: =IF(I16="","",K16*Data!H7) ->  | N16: 0
B17: Social Prescribing Link Worker | E17: =SUMIFS('ARR Staff'!$N:$N,'ARR Staff'!$I:$I,'ARRS Summary'!B17,'ARR Staff'!$P:$P,"") -> 0 | F17: =E17*Data!H8 -> 0 | G17: Social Prescribing Link Worker (B5) | K17: =IF(J17="","",IF(J17="April",1,IF(J17="May",0.9167,IF(J17="June",0.8333,IF(J17="July",0.75,IF(J17="Aug",0.67,IF(J17="Sept",0.58333,IF(J17="Oct",0.5,IF(J17="Nov",0.4167,IF(J17="Dec",0.3333,IF(J17="Jan",0.25,IF(J17="Feb",0.1667,0.083)))))))))))*I17) ->  | M17: =IF(I17="","",K17*Data!H8) ->  | N17: 0
B18: Care Coordinator | E18: =SUMIFS('ARR Staff'!$N:$N,'ARR Staff'!$I:$I,'ARRS Summary'!B18,'ARR Staff'!$P:$P,"") -> 0 | F18: =E18*Data!H9 -> 0 | G18: Care Coordinator (B4) | K18: =IF(J18="","",IF(J18="April",1,IF(J18="May",0.9167,IF(J18="June",0.8333,IF(J18="July",0.75,IF(J18="Aug",0.67,IF(J18="Sept",0.58333,IF(J18="Oct",0.5,IF(J18="Nov",0.4167,IF(J18="Dec",0.3333,IF(J18="Jan",0.25,IF(J18="Feb",0.1667,0.083)))))))))))*I18) ->  | M18: =IF(I18="","",K18*Data!H9) ->  | N18: 0
B19: Health and Wellbeing Coach | E19: =SUMIFS('ARR Staff'!$N:$N,'ARR Staff'!$I:$I,'ARRS Summary'!B19,'ARR Staff'!$P:$P,"") -> 0 | F19: =E19*Data!H10 -> 0 | G19: Health and Wellbeing Coach (B5) | K19: =IF(J19="","",IF(J19="April",1,IF(J19="May",0.9167,IF(J19="June",0.8333,IF(J19="July",0.75,IF(J19="Aug",0.67,IF(J19="Sept",0.58333,IF(J19="Oct",0.5,IF(J19="Nov",0.4167,IF(J19="Dec",0.3333,IF(J19="Jan",0.25,IF(J19="Feb",0.1667,0.083)))))))))))*I19) ->  | M19: =IF(I19="","",K19*Data!H10) ->  | N19: 0
B20: Nursing Associate | E20: =SUMIFS('ARR Staff'!$N:$N,'ARR Staff'!$I:$I,'ARRS Summary'!B20,'ARR Staff'!$P:$P,"") -> 0 | F20: =E20*Data!H14 -> 0 | G20: Nursing Associate (B4) | K20: =IF(J20="","",IF(J20="April",1,IF(J20="May",0.9167,IF(J20="June",0.8333,IF(J20="July",0.75,IF(J20="Aug",0.67,IF(J20="Sept",0.58333,IF(J20="Oct",0.5,IF(J20="Nov",0.4167,IF(J20="Dec",0.3333,IF(J20="Jan",0.25,IF(J20="Feb",0.1667,0.083)))))))))))*I20) ->  | M20: =IF(I20="","",K20*Data!H11) ->  | N20: 0
B21: Trainee Nursing Associate | E21: =SUMIFS('ARR Staff'!$N:$N,'ARR Staff'!$I:$I,'ARRS Summary'!B21,'ARR Staff'!$P:$P,"") -> 0 | F21: =E21*Data!H16 -> 0 | G21: Trainee Nursing Associate (B3) | K21: =IF(J21="","",IF(J21="April",1,IF(J21="May",0.9167,IF(J21="June",0.8333,IF(J21="July",0.75,IF(J21="Aug",0.67,IF(J21="Sept",0.58333,IF(J21="Oct",0.5,IF(J21="Nov",0.4167,IF(J21="Dec",0.3333,IF(J21="Jan",0.25,IF(J21="Feb",0.1667,0.083)))))))))))*I21) ->  | M21: =IF(I21="","",K21*Data!H12) ->  | N21: 0
B22: General Practice Assistant (GPA) | E22: =SUMIFS('ARR Staff'!$N:$N,'ARR Staff'!$I:$I,'ARRS Summary'!B22,'ARR Staff'!$P:$P,"") -> 0 | G22: General Practice Assistant (B4) | K22: =IF(J22="","",IF(J22="April",1,IF(J22="May",0.9167,IF(J22="June",0.8333,IF(J22="July",0.75,IF(J22="Aug",0.67,IF(J22="Sept",0.58333,IF(J22="Oct",0.5,IF(J22="Nov",0.4167,IF(J22="Dec",0.3333,IF(J22="Jan",0.25,IF(J22="Feb",0.1667,0.083)))))))))))*I22) ->  | M22: =IF(I22="","",K22*Data!H13) ->  | N22: 0
B23: Physician Associate | E23: =SUMIFS('ARR Staff'!$N:$N,'ARR Staff'!$I:$I,'ARRS Summary'!B23,'ARR Staff'!$P:$P,"") -> 0 | F23: =E23*Data!H17 -> 0 | G23: Physician Associate (B7) | M23: =IF(I23="","",K23*Data!H14) ->  | N23: 0
B24: Apprentice Physician Associate | E24: =SUMIFS('ARR Staff'!$N:$N,'ARR Staff'!$I:$I,'ARRS Summary'!B24,'ARR Staff'!$P:$P,"") -> 0 | G24: Apprentice Physician Associate (B5) | M24: =IF(I24="","",K24*Data!H15) ->  | N24: 0
B25: Occupational Therapists | E25: =SUMIFS('ARR Staff'!$N:$N,'ARR Staff'!$I:$I,'ARRS Summary'!B25,'ARR Staff'!$P:$P,"") -> 0 | F25: =E25*Data!H18 -> 0 | G25: Occupational Therapists (B7) | M25: =IF(I25="","",K25*Data!H16) ->  | N25: 0
B26: Dietitians | E26: =SUMIFS('ARR Staff'!$N:$N,'ARR Staff'!$I:$I,'ARRS Summary'!B26,'ARR Staff'!$P:$P,"") -> 0 | F26: =E26*Data!H11 -> 0 | G26: Dietitians (B7) | M26: =IF(I26="","",K26*Data!H17) ->  | N26: 0
B27: Podiatrists | E27: =SUMIFS('ARR Staff'!$N:$N,'ARR Staff'!$I:$I,'ARRS Summary'!B27,'ARR Staff'!$P:$P,"") -> 0 | F27: =E27*Data!H12 -> 0 | G27: Podiatrists (B7) | M27: =IF(I27="","",K27*Data!H18) ->  | N27: 0
B28: Digital Transformation Lead | E28: =SUMIFS('ARR Staff'!$N:$N,'ARR Staff'!$I:$I,'ARRS Summary'!B28,'ARR Staff'!$P:$P,"") -> 0 | G28: Digital Transformation Lead (B8a) | K28: =IF(J28="","",IF(J28="April",1,IF(J28="May",0.9167,IF(J28="June",0.8333,IF(J28="July",0.75,IF(J28="Aug",0.67,IF(J28="Sept",0.58333,IF(J28="Oct",0.5,IF(J28="Nov",0.4167,IF(J28="Dec",0.3333,IF(J28="Jan",0.25,IF(J28="Feb",0.1667,0.083)))))))))))*I28) ->  | M28: =IF(I28="","",K28*Data!H19) ->  | N28: 0
B29: Advanced Practitioner | E29: =SUMIFS('ARR Staff'!$N:$N,'ARR Staff'!$I:$I,'ARRS Summary'!B29,'ARR Staff'!$P:$P,"") -> 0 | F29: =E29*Data!H19 -> 0 | G29: Advanced Practitioner (B8a) | M29: =IF(I29="","",K29*Data!H19) ->  | N29: 0
B30: Mental Health Practitioner | E30: =SUMIFS('ARR Staff'!$N:$N,'ARR Staff'!$I:$I,'ARRS Summary'!B30,'ARR Staff'!$P:$P,"") -> 0 | F30: =E30*Data!H21/2 -> 0 | G30: Mental Health Practitioner - Select band:
G31: Mental Health Practitioner (B4-8a) | K31: =IF(J31="","",IF(J31="April",1,IF(J31="May",0.9167,IF(J31="June",0.8333,IF(J31="July",0.75,IF(J31="Aug",0.67,IF(J31="Sept",0.58333,IF(J31="Oct",0.5,IF(J31="Nov",0.4167,IF(J31="Dec",0.3333,IF(J31="Jan",0.25,IF(J31="Feb",0.1667,0.083)))))))))))*I31) ->  | L31: =SUM(E30+I31) -> 0 | M31: =IF(I31="","",_xlfn.IFS(I30=Data!$B$4,Data!H11,I30=Data!B5,Data!H5,I30=Data!B6,Data!H21,I30=Data!B7,Data!H18,I30=Data!B8,Data!H19)*K31/2) ->  | N31: =E30+I31 -> 0
B32: Total ARR WTE Roles: | E32: =SUM(E13:E30) -> 0 | G32: Total ARR WTE Roles: | I32: =SUM(I13:I29,I31) -> 0 | M32: =SUM(M13:M29,M31) -> 0 | N32: =SUM(N13:N29,N31) -> 0

Sheet ARR Staff (hidden)
B1: ARR Staff | E1: * = mandatory fields | Q1: TOTALS | R1: =IF(SUM(R4:R1000)=0,0,SUM(R4:R1000)) -> 0 | S1: =IF(SUM(S4:S1000)=0,0,SUM(S4:S1000)) -> 0 | T1: 0 | U1: 0 | V1: =IF(R1=0,"",IF(SUM(V4:V1000)=0,0,SUM(V4:V1000))) ->  | W1: =IF(SUM(W4:W1000)=0,0,SUM(W4:W1000)) -> 0 | X1: =IF(SUM(X4:X1000)=0,0,SUM(X4:X1000)) -> 0 | Y1: 0 | Z1: 0 | AA1: =IF(W1=0,"",IF(SUM(AA4:AA1000)=0,0,SUM(AA4:AA1000))) ->  | AB1: =IF(SUM(AB4:AB1000)=0,0,SUM(AB4:AB1000)) -> 0 | AC1: =IF(SUM(AC4:AC1000)=0,0,SUM(AC4:AC1000)) -> 0 | AD1: 0 | AE1: 0 | AF1: =IF(AB1=0,"",IF(SUM(AF4:AF1000)=0,0,SUM(AF4:AF1000))) ->  | AG1: =IF(SUM(AG4:AG1000)=0,0,SUM(AG4:AG1000)) -> 0 | AH1: =IF(SUM(AH4:AH1000)=0,0,SUM(AH4:AH1000)) -> 0 | AI1: 0 | AJ1: 0 | AK1: =IF(AG1=0,"",IF(SUM(AK4:AK1000)=0,0,SUM(AK4:AK1000))) ->  | AL1: =IF(SUM(AL4:AL1000)=0,0,SUM(AL4:AL1000)) -> 0 | AM1: =IF(SUM(AM4:AM1000)=0,0,SUM(AM4:AM1000)) -> 0 | AN1: 0 | AO1: 0 | AP1: =IF(AL1=0,"",IF(SUM(AP4:AP1000)=0,0,SUM(AP4:AP1000))) ->  | AQ1: =IF(SUM(AQ4:AQ1000)=0,0,SUM(AQ4:AQ1000)) -> 0 | AR1: =IF(SUM(AR4:AR1000)=0,0,SUM(AR4:AR1000)) -> 0 | AS1: 0 | AT1: 0 | AU1: =IF(AQ1=0,"",IF(SUM(AU4:AU1000)=0,0,SUM(AU4:AU1000))) ->  | AV1: =IF(SUM(AV4:AV1000)=0,0,SUM(AV4:AV1000)) -> 0 | AW1: =IF(SUM(AW4:AW1000)=0,0,SUM(AW4:AW1000)) -> 0 | AX1: 0 | AY1: 0 | AZ1: =IF(AV1=0,"",IF(SUM(AZ4:AZ1000)=0,0,SUM(AZ4:AZ1000))) ->  | BA1: =IF(SUM(BA4:BA1000)=0,0,SUM(BA4:BA1000)) -> 0 | BB1: =IF(SUM(BB4:BB1000)=0,0,SUM(BB4:BB1000)) -> 0 | BC1: 0 | BD1: 0 | BE1: =IF(BA1=0,"",IF(SUM(BE4:BE1000)=0,0,SUM(BE4:BE1000))) ->  | BF1: =IF(SUM(BF4:BF1000)=0,0,SUM(BF4:BF1000)) -> 0 | BG1: =IF(SUM(BG4:BG1000)=0,0,SUM(BG4:BG1000)) -> 0 | BH1: 0 | BI1: 0 | BJ1: =IF(BF1=0,"",IF(SUM(BJ4:BJ1000)=0,0,SUM(BJ4:BJ1000))) ->  | BK1: =IF(SUM(BK4:BK1000)=0,0,SUM(BK4:BK1000)) -> 0 | BL1: =IF(SUM(BL4:BL1000)=0,0,SUM(BL4:BL1000)) -> 0 | BM1: 0 | BN1: 0 | BO1: =IF(BK1=0,"",IF(SUM(BO4:BO1000)=0,0,SUM(BO4:BO1000))) ->  | BP1: =IF(SUM(BP4:BP1000)=0,0,SUM(BP4:BP1000)) -> 0 | BQ1: =IF(SUM(BQ4:BQ1000)=0,0,SUM(BQ4:BQ1000)) -> 0 | BR1: 0 | BS1: 0 | BT1: =IF(BP1=0,"",IF(SUM(BT4:BT1000)=0,0,SUM(BT4:BT1000))) ->  | BU1: =IF(SUM(BU4:BU1000)=0,0,SUM(BU4:BU1000)) -> 0 | BV1: =IF(SUM(BV4:BV1000)=0,0,SUM(BV4:BV1000)) -> 0 | BW1: 0 | BX1: 0 | BY1: =IF(BU1=0,"",IF(SUM(BY4:BY1000)=0,0,SUM(BY4:BY1000))) ->  | BZ1: =IF(SUM(BZ4:BZ1000)=0,0,SUM(BZ4:BZ1000)) -> 0 | CA1: =IF(SUM(CA4:CA1000)=0,0,SUM(CA4:CA1000)) -> 0 | CB1: 0 | CC1: 0
I2: Dropdown | J2: Conditional dropdown | N2: Calculated | P2: Enter when employee left | Q2: Calculated | R2: Enter | S2: Calculated | T2: Enter | U2: Calculated | V2: Enter | W2: Enter | X2: Calculated | Y2: Enter | Z2: Calculated | AA2: Enter | AB2: Enter | AC2: Calculated | AD2: Enter | AE2: Calculated | AF2: Enter | AG2: Enter | AH2: Calculated | AI2: Enter | AJ2: Calculated | AK2: Enter | AL2: Enter | AM2: Calculated | AN2: Enter | AO2: Calculated | AP2: Enter | AQ2: Enter | AR2: Enter | AS2: Enter | AT2: Calculated | AU2: Enter | AV2: Enter | AW2: Calculated | AX2: Enter | AY2: Calculated | AZ2: Enter | BA2: Enter | BB2: Calculated | BC2: Enter | BD2: Calculated | BE2: Enter | BF2: Enter | BG2: Calculated | BH2: Enter | BI2: Calculated | BJ2: Enter | BK2: Enter | BL2: Calculated | BM2: Enter | BN2: Calculated | BO2: Enter | BP2: Enter | BQ2: Calculated | BR2: Enter | BS2: Calculated | BT2: Enter | BU2: Enter | BV2: Calculated | BW2: Enter | BX2: Calculated | BY2: Enter | BZ2: Calculated Totals
B3: Optional Fields | R3: April | W3: May | AB3: June | AG3: July | AL3: August | AQ3: September | AV3: October | BA3: November | BF3: December | BK3: January | BP3: February | BU3: March
B4: Name | C4: ARR Portal Code Ref* | D4: Appraisal Date 23/24 | E4: Line Manager | F4: Clinical Supervisor & Support | G4: Employer | H4: Works At | I4: Role* | J4: MH ARR A4C Band* | K4: Non MH salary | L4: MH salary | M4: Current hours/week* | N4: Current WTE | O4: PCN Start Date* | P4: PCN End Date* | Q4: Monthly Max Reimbursable 23/24 (Latest) | R4: Actual Salary (+SPLW fee)* | S4: Above ARR Claim | T4: Other (non-reimbursable) | U4: Indicative Portal Value | V4: Actual Portal Reimbursement* | W4: Actual Salary (+SPLW fee)* | X4: Above ARR Claim | Y4: Other (non-reimbursable) | Z4: Indicative Portal Value | AA4: Actual Portal Reimbursement* | AB4: Actual Salary (+SPLW fee)* | AC4: Above ARR Claim | AD4: Other (non-reimbursable) | AE4: Indicative Portal Value | AF4: Actual Portal Reimbursement* | AG4: Actual Salary (+SPLW fee)* | AH4: Above ARR Claim | AI4: Other (non-reimbursable) | AJ4: Indicative Portal Value | AK4: Actual Portal Reimbursement* | AL4: Actual Salary (+SPLW fee)* | AM4: Above ARR Claim | AN4: Other (non-reimbursable) | AO4: Indicative Portal Value | AP4: Actual Portal Reimbursement* | AQ4: Actual Salary (+SPLW fee) | AR4: Above ARR Claim | AS4: Other (non-reimbursable) | AT4: Indicative Portal Value | AU4: Actual Portal Reimbursement* | AV4: Actual Salary (+SPLW fee)* | AW4: Above ARR Claim | AX4: Other (non-reimbursable) | AY4: Indicative Portal Value | AZ4: Actual Portal Reimbursement* | BA4: Actual Salary (+SPLW fee)* | BB4: Above ARR Claim | BC4: Other (non-reimbursable) | BD4: Indicative Portal Value | BE4: Actual Portal Reimbursement* | BF4: Actual Salary (+SPLW fee)* | BG4: Above ARR Claim | BH4: Other (non-reimbursable) | BI4: Indicative Portal Value | BJ4: Actual Portal Reimbursement* | BK4: Actual Salary (+SPLW fee)* | BL4: Above ARR Claim | BM4: Other (non-reimbursable) | BN4: Indicative Portal Value | BO4: Actual Portal Reimbursement* | BP4: Actual Salary (+SPLW fee)* | BQ4: Above ARR Claim | BR4: Other (non-reimbursable) | BS4: Indicative Portal Value | BT4: Actual Portal Reimbursement* | BU4: Actual Salary (+SPLW fee)* | BV4: Above ARR Claim | BW4: Other (non-reimbursable) | BX4: Indicative Portal Value | BY4: Actual Portal Reimbursement* | BZ4: ARRS income YTD TOTAL | CA4: Above ARR TOTAL | CB4: Non-reimbursable TOTAL | CC4: Residual cost to PCN | CD4: Comments
J5: =IF(I5="","",IF(I5='ARRS Summary'!$B$30,"Enter A4C band here","No Entry Required")) ->  | K5: =VLOOKUP(I5,Data!F$4:H$21,3,FALSE) ->  | L5: =IF(I5<>'ARRS Summary'!B$30,"",_xlfn.IFS(J5=Data!$B$4,Data!$H$11,J5=Data!$B$5,Data!$H$5,J5=Data!$B$6,Data!$H$21,J5=Data!$B$7,Data!$H$6,J5=Data!$B$8,Data!$H$19)) ->  | N5: =IF(M5="","",M5/37.5) ->  | Q5: =IF(I5="","",IF(I5='ARRS Summary'!B$30,L5/2,K5)/12*N5) ->  | S5: =IF(R5="","",IF(R5<V5,0,R5-V5)) ->  | U5: =IF(R5="","",MIN(R5,$Q5)) ->  | V5: =IF(R5="","","Please enter to match portal") ->  | X5: =IF(W5="","",IF(W5<AA5,0,W5-AA5)) ->  | Z5: =IF(W5="","",MIN(W5,$Q5)) ->  | AA5: =IF(W5="","","Please enter to match portal") ->  | AC5: =IF(AB5="","",IF(AB5<AF5,0,AB5-AF5)) ->  | AE5: =IF(AB5="","",MIN(AB5,$Q5)) ->  | AF5: =IF(AB5="","","Please enter to match portal") ->  | AH5: =IF(AG5="","",IF(AG5<AK5,0,AG5-AK5)) ->  | AJ5: =IF(AG5="","",MIN(AG5,$Q5)) ->  | AK5: =IF(AG5="","","Please enter to match portal") ->  | AM5: =IF(AL5="","",IF(AL5<AP5,0,AL5-AP5)) ->  | AO5: =IF(AL5="","",MIN(AL5,$Q5)) ->  | AP5: =IF(AL5="","","Please enter to match portal") ->  | AR5: =IF(AQ5="","",IF(AQ5<AU5,0,AQ5-AU5)) ->  | AT5: =IF(AQ5="","",MIN(AQ5,$Q5)) ->  | AU5: =IF(AQ5="","","Please enter to match portal") ->  | AW5: =IF(AV5="","",IF(AV5<AZ5,0,AV5-AZ5)) ->  | AY5: =IF(AV5="","",MIN(AV5,$Q5)) ->  | AZ5: =IF(AV5="","","Please enter to match portal") ->  | BB5: =IF(BA5="","",IF(BA5<BE5,0,BA5-BE5)) ->  | BD5: =IF(BA5="","",MIN(BA5,$Q5)) ->  | BE5: =IF(BA5="","","Please enter to match portal") ->  | BG5: =IF(BF5="","",IF(BF5<BJ5,0,BF5-BJ5)) ->  | BI5: =IF(BF5="","",MIN(BF5,$Q5)) ->  | BJ5: =IF(BF5="","","Please enter to match portal") ->  | BL5: =IF(BK5="","",IF(BK5<BO5,0,BK5-BO5)) ->  | BN5: =IF(BK5="","",MIN(BK5,$Q5)) ->  | BO5: =IF(BK5="","","Please enter to match portal") ->  | BQ5: =IF(BP5="","",IF(BP5<BT5,0,BP5-BT5)) ->  | BS5: =IF(BP5="","",MIN(BP5,$Q5)) ->  | BT5: =IF(BP5="","","Please enter to match portal") ->  | BV5: =IF(BU5="","",IF(BU5<BY5,0,BU5-BY5)) ->  | BX5: =IF(BU5="","",MIN(BU5,$Q5)) ->  | BY5: =IF(BU5="","","Please enter to match portal") ->  | BZ5: =IF(I5="","",SUM(V5,AA5,AF5,AK5,AP5,AU5,AZ5,BE5,BJ5,BO5,BT5,BY5)) ->  | CA5: =IF(I5="","",SUM(S5,X5,AC5,AH5,AM5,AR5,AW5,BB5,BG5,BL5,BQ5,BV5)) ->  | CB5: =IF(I5="","",SUM(T5,Y5,AD5,AI5,AN5,AS5,AX5,BC5,BH5,BM5,BR5,BW5)) ->  | CC5: =IF(I5="","",SUM(CA5,CB5)) -> 
J6: =IF(I6="","",IF(I6='ARRS Summary'!$B$30,"Enter A4C band here","No Entry Required")) ->  | K6: =VLOOKUP(I6,Data!F$4:H$21,3,FALSE) ->  | L6: =IF(I6<>'ARRS Summary'!B$30,"",_xlfn.IFS(J6=Data!$B$4,Data!$H$11,J6=Data!$B$5,Data!$H$5,J6=Data!$B$6,Data!$H$21,J6=Data!$B$7,Data!$H$6,J6=Data!$B$8,Data!$H$19)) ->  | N6: =IF(M6="","",M6/37.5) ->  | Q6: =IF(I6="","",IF(I6='ARRS Summary'!B$30,L6/2,K6)/12*N6) ->  | S6: =IF(R6="","",IF(R6<V6,0,R6-V6)) ->  | U6: =IF(R6="","",MIN(R6,$Q6)) ->  | X6: =IF(W6="","",IF(W6<AA6,0,W6-AA6)) ->  | Z6: =IF(W6="","",MIN(W6,$Q6)) ->  | AC6: =IF(AB6="","",IF(AB6<AF6,0,AB6-AF6)) ->  | AE6: =IF(AB6="","",MIN(AB6,$Q6)) ->  | AF6: =IF(AB6="","","Please enter to match portal") ->  | AH6: =IF(AG6="","",IF(AG6<AK6,0,AG6-AK6)) ->  | AJ6: =IF(AG6="","",MIN(AG6,$Q6)) ->  | AK6: =IF(AG6="","","Please enter to match portal") ->  | AM6: =IF(AL6="","",IF(AL6<AP6,0,AL6-AP6)) ->  | AO6: =IF(AL6="","",MIN(AL6,$Q6)) ->  | AP6: =IF(AL6="","","Please enter to match portal") ->  | AR6: =IF(AQ6="","",IF(AQ6<AU6,0,AQ6-AU6)) ->  | AT6: =IF(AQ6="","",MIN(AQ6,$Q6)) ->  | AU6: =IF(AQ6="","","Please enter to match portal") ->  | AW6: =IF(AV6="","",IF(AV6<AZ6,0,AV6-AZ6)) ->  | AY6: =IF(AV6="","",MIN(AV6,$Q6)) ->  | AZ6: =IF(AV6="","","Please enter to match portal") ->  | BB6: =IF(BA6="","",IF(BA6<BE6,0,BA6-BE6)) ->  | BD6: =IF(BA6="","",MIN(BA6,$Q6)) ->  | BE6: =IF(BA6="","","Please enter to match portal") ->  | BG6: =IF(BF6="","",IF(BF6<BJ6,0,BF6-BJ6)) ->  | BI6: =IF(BF6="","",MIN(BF6,$Q6)) ->  | BJ6: =IF(BF6="","","Please enter to match portal") ->  | BL6: =IF(BK6="","",IF(BK6<BO6,0,BK6-BO6)) ->  | BN6: =IF(BK6="","",MIN(BK6,$Q6)) ->  | BO6: =IF(BK6="","","Please enter to match portal") ->  | BQ6: =IF(BP6="","",IF(BP6<BT6,0,BP6-BT6)) ->  | BS6: =IF(BP6="","",MIN(BP6,$Q6)) ->  | BT6: =IF(BP6="","","Please enter to match portal") ->  | BV6: =IF(BU6="","",IF(BU6<BY6,0,BU6-BY6)) ->  | BX6: =IF(BU6="","",MIN(BU6,$Q6)) ->  | BY6: =IF(BU6="","","Please enter to match portal") ->  | BZ6: =IF(I6="","",SUM(V6,AA6,AF6,AK6,AP6,AU6,AZ6,BE6,BJ6,BO6,BT6,BY6)) ->  | CA6: =IF(I6="","",SUM(S6,X6,AC6,AH6,AM6,AR6,AW6,BB6,BG6,BL6,BQ6,BV6)) ->  | CB6: =IF(I6="","",SUM(T6,Y6,AD6,AI6,AN6,AS6,AX6,BC6,BH6,BM6,BR6,BW6)) ->  | CC6: =IF(I6="","",SUM(CA6,CB6)) -> 
J7: =IF(I7="","",IF(I7='ARRS Summary'!$B$30,"Enter A4C band here","No Entry Required")) ->  | K7: =VLOOKUP(I7,Data!F$4:H$21,3,FALSE) ->  | L7: =IF(I7<>'ARRS Summary'!B$30,"",_xlfn.IFS(J7=Data!$B$4,Data!$H$11,J7=Data!$B$5,Data!$H$5,J7=Data!$B$6,Data!$H$21,J7=Data!$B$7,Data!$H$6,J7=Data!$B$8,Data!$H$19)) ->  | N7: =IF(M7="","",M7/37.5) ->  | Q7: =IF(I7="","",IF(I7='ARRS Summary'!B$30,L7/2,K7)/12*N7) ->  | U7: =IF(R7="","",MIN(R7,$Q7)) ->  | Z7: =IF(W7="","",MIN(W7,$Q7)) ->  | AE7: =IF(AB7="","",MIN(AB7,$Q7)) ->  | AF7: =IF(AB7="","","Please enter to match portal") ->  | AJ7: =IF(AG7="","",MIN(AG7,$Q7)) ->  | AK7: =IF(AG7="","","Please enter to match portal") ->  | AO7: =IF(AL7="","",MIN(AL7,$Q7)) ->  | AP7: =IF(AL7="","","Please enter to match portal") ->  | AY7: =IF(AV7="","",MIN(AV7,$Q7)) ->  | AZ7: =IF(AV7="","","Please enter to match portal") ->  | BD7: =IF(BA7="","",MIN(BA7,$Q7)) ->  | BE7: =IF(BA7="","","Please enter to match portal") ->  | BI7: =IF(BF7="","",MIN(BF7,$Q7)) ->  | BJ7: =IF(BF7="","","Please enter to match portal") ->  | BN7: =IF(BK7="","",MIN(BK7,$Q7)) ->  | BO7: =IF(BK7="","","Please enter to match portal") ->  | BS7: =IF(BP7="","",MIN(BP7,$Q7)) ->  | BT7: =IF(BP7="","","Please enter to match portal") ->  | BX7: =IF(BU7="","",MIN(BU7,$Q7)) ->  | BY7: =IF(BU7="","","Please enter to match portal") ->  | CA7: =IF(I7="","",SUM(S7,X7,AC7,AH7,AM7,AR7,AW7,BB7,BG7,BL7,BQ7,BV7)) ->  | CB7: =IF(I7="","",SUM(T7,Y7,AD7,AI7,AN7,AS7,AX7,BC7,BH7,BM7,BR7,BW7)) ->  | CC7: =IF(I7="","",SUM(CA7,CB7)) -> 
J8: =IF(I8="","",IF(I8='ARRS Summary'!$B$30,"Enter A4C band here","No Entry Required")) ->  | K8: =VLOOKUP(I8,Data!F$4:H$21,3,FALSE) ->  | L8: =IF(I8<>'ARRS Summary'!B$30,"",_xlfn.IFS(J8=Data!$B$4,Data!$H$11,J8=Data!$B$5,Data!$H$5,J8=Data!$B$6,Data!$H$21,J8=Data!$B$7,Data!$H$6,J8=Data!$B$8,Data!$H$19)) ->  | Q8: =IF(I8="","",IF(I8='ARRS Summary'!B$30,L8/2,K8)/12*N8) ->  | CC8: =IF(I8="","",SUM(CA8,CB8)) -> 
J9: =IF(I9="","",IF(I9='ARRS Summary'!$B$30,"Enter A4C band here","No Entry Required")) ->  | K9: =VLOOKUP(I9,Data!F$4:H$21,3,FALSE) ->  | L9: =IF(I9<>'ARRS Summary'!B$30,"",_xlfn.IFS(J9=Data!$B$4,Data!$H$11,J9=Data!$B$5,Data!$H$5,J9=Data!$B$6,Data!$H$21,J9=Data!$B$7,Data!$H$6,J9=Data!$B$8,Data!$H$19)) ->  | Q9: =IF(I9="","",IF(I9='ARRS Summary'!B$30,L9/2,K9)/12*N9) ->  | CC9: =IF(I9="","",SUM(CA9,CB9)) -> 
J10: =IF(I10="","",IF(I10='ARRS Summary'!$B$30,"Enter A4C band here","No Entry Required")) ->  | K10: =VLOOKUP(I10,Data!F$4:H$21,3,FALSE) ->  | L10: =IF(I10<>'ARRS Summary'!B$30,"",_xlfn.IFS(J10=Data!$B$4,Data!$H$11,J10=Data!$B$5,Data!$H$5,J10=Data!$B$6,Data!$H$21,J10=Data!$B$7,Data!$H$6,J10=Data!$B$8,Data!$H$19)) ->  | Q10: =IF(I10="","",IF(I10='ARRS Summary'!B$30,L10/2,K10)/12*N10) -> 
J11: =IF(I11="","",IF(I11='ARRS Summary'!$B$30,"Enter A4C band here","No Entry Required")) ->  | K11: =VLOOKUP(I11,Data!F$4:H$21,3,FALSE) ->  | L11: =IF(I11<>'ARRS Summary'!B$30,"",_xlfn.IFS(J11=Data!$B$4,Data!$H$11,J11=Data!$B$5,Data!$H$5,J11=Data!$B$6,Data!$H$21,J11=Data!$B$7,Data!$H$6,J11=Data!$B$8,Data!$H$19)) ->  | Q11: =IF(I11="","",IF(I11='ARRS Summary'!B$30,L11/2,K11)/12*N11) -> 
J12: =IF(I12="","",IF(I12='ARRS Summary'!$B$30,"Enter A4C band here","No Entry Required")) ->  | K12: =VLOOKUP(I12,Data!F$4:H$21,3,FALSE) ->  | L12: =IF(I12<>'ARRS Summary'!B$30,"",_xlfn.IFS(J12=Data!$B$4,Data!$H$11,J12=Data!$B$5,Data!$H$5,J12=Data!$B$6,Data!$H$21,J12=Data!$B$7,Data!$H$6,J12=Data!$B$8,Data!$H$19)) ->  | Q12: =IF(I12="","",IF(I12='ARRS Summary'!B$30,L12/2,K12)/12*N12) ->  | CC12: =IF(I12="","",SUM(CA12,CB12)) -> 
J13: =IF(I13="","",IF(I13='ARRS Summary'!$B$30,"Enter A4C band here","No Entry Required")) ->  | K13: =VLOOKUP(I13,Data!F$4:H$21,3,FALSE) ->  | L13: =IF(I13<>'ARRS Summary'!B$30,"",_xlfn.IFS(J13=Data!$B$4,Data!$H$11,J13=Data!$B$5,Data!$H$5,J13=Data!$B$6,Data!$H$21,J13=Data!$B$7,Data!$H$6,J13=Data!$B$8,Data!$H$19)) ->  | Q13: =IF(I13="","",IF(I13='ARRS Summary'!B$30,L13/2,K13)/12*N13) ->  | CC13: =IF(I13="","",SUM(CA13,CB13)) -> 
J14: =IF(I14="","",IF(I14='ARRS Summary'!$B$30,"Enter A4C band here","No Entry Required")) ->  | K14: =VLOOKUP(I14,Data!F$4:H$21,3,FALSE) ->  | L14: =IF(I14<>'ARRS Summary'!B$30,"",_xlfn.IFS(J14=Data!$B$4,Data!$H$11,J14=Data!$B$5,Data!$H$5,J14=Data!$B$6,Data!$H$21,J14=Data!$B$7,Data!$H$6,J14=Data!$B$8,Data!$H$19)) ->  | Q14: =IF(I14="","",IF(I14='ARRS Summary'!B$30,L14/2,K14)/12*N14) ->  | CC14: =IF(I14="","",SUM(CA14,CB14)) -> 
J15: =IF(I15="","",IF(I15='ARRS Summary'!$B$30,"Enter A4C band here","No Entry Required")) ->  | K15: =VLOOKUP(I15,Data!F$4:H$21,3,FALSE) ->  | L15: =IF(I15<>'ARRS Summary'!B$30,"",_xlfn.IFS(J15=Data!$B$4,Data!$H$11,J15=Data!$B$5,Data!$H$5,J15=Data!$B$6,Data!$H$21,J15=Data!$B$7,Data!$H$6,J15=Data!$B$8,Data!$H$19)) ->  | Q15: =IF(I15="","",IF(I15='ARRS Summary'!B$30,L15/2,K15)/12*N15) ->  | CC15: =IF(I15="","",SUM(CA15,CB15)) -> 
J16: =IF(I16="","",IF(I16='ARRS Summary'!$B$30,"Enter A4C band here","No Entry Required")) ->  | K16: =VLOOKUP(I16,Data!F$4:H$21,3,FALSE) ->  | L16: =IF(I16<>'ARRS Summary'!B$30,"",_xlfn.IFS(J16=Data!$B$4,Data!$H$11,J16=Data!$B$5,Data!$H$5,J16=Data!$B$6,Data!$H$21,J16=Data!$B$7,Data!$H$6,J16=Data!$B$8,Data!$H$19)) ->  | Q16: =IF(I16="","",IF(I16='ARRS Summary'!B$30,L16/2,K16)/12*N16) ->  | CC16: =IF(I16="","",SUM(CA16,CB16)) -> 
J17: =IF(I17="","",IF(I17='ARRS Summary'!$B$30,"Enter A4C band here","No Entry Required")) ->  | K17: =VLOOKUP(I17,Data!F$4:H$21,3,FALSE) ->  | L17: =IF(I17<>'ARRS Summary'!B$30,"",_xlfn.IFS(J17=Data!$B$4,Data!$H$11,J17=Data!$B$5,Data!$H$5,J17=Data!$B$6,Data!$H$21,J17=Data!$B$7,Data!$H$6,J17=Data!$B$8,Data!$H$19)) ->  | Q17: =IF(I17="","",IF(I17='ARRS Summary'!B$30,L17/2,K17)/12*N17) -> 
J18: =IF(I18="","",IF(I18='ARRS Summary'!$B$30,"Enter A4C band here","No Entry Required")) ->  | K18: =VLOOKUP(I18,Data!F$4:H$21,3,FALSE) ->  | L18: =IF(I18<>'ARRS Summary'!B$30,"",_xlfn.IFS(J18=Data!$B$4,Data!$H$11,J18=Data!$B$5,Data!$H$5,J18=Data!$B$6,Data!$H$21,J18=Data!$B$7,Data!$H$6,J18=Data!$B$8,Data!$H$19)) ->  | Q18: =IF(I18="","",IF(I18='ARRS Summary'!B$30,L18/2,K18)/12*N18) -> 
J19: =IF(I19="","",IF(I19='ARRS Summary'!$B$30,"Enter A4C band here","No Entry Required")) ->  | K19: =VLOOKUP(I19,Data!F$4:H$21,3,FALSE) ->  | L19: =IF(I19<>'ARRS Summary'!B$30,"",_xlfn.IFS(J19=Data!$B$4,Data!$H$11,J19=Data!$B$5,Data!$H$5,J19=Data!$B$6,Data!$H$21,J19=Data!$B$7,Data!$H$6,J19=Data!$B$8,Data!$H$19)) ->  | Q19: =IF(I19="","",IF(I19='ARRS Summary'!B$30,L19/2,K19)/12*N19) -> 
J20: =IF(I20="","",IF(I20='ARRS Summary'!$B$30,"Enter A4C band here","No Entry Required")) ->  | K20: =VLOOKUP(I20,Data!F$4:H$21,3,FALSE) ->  | L20: =IF(I20<>'ARRS Summary'!B$30,"",_xlfn.IFS(J20=Data!$B$4,Data!$H$11,J20=Data!$B$5,Data!$H$5,J20=Data!$B$6,Data!$H$21,J20=Data!$B$7,Data!$H$6,J20=Data!$B$8,Data!$H$19)) ->  | Q20: =IF(I20="","",IF(I20='ARRS Summary'!B$30,L20/2,K20)/12*N20) ->  | CC20: =IF(I20="","",SUM(CA20,CB20)) -> 
J21: =IF(I21="","",IF(I21='ARRS Summary'!$B$30,"Enter A4C band here","No Entry Required")) ->  | K21: =VLOOKUP(I21,Data!F$4:H$21,3,FALSE) ->  | L21: =IF(I21<>'ARRS Summary'!B$30,"",_xlfn.IFS(J21=Data!$B$4,Data!$H$11,J21=Data!$B$5,Data!$H$5,J21=Data!$B$6,Data!$H$21,J21=Data!$B$7,Data!$H$6,J21=Data!$B$8,Data!$H$19)) ->  | Q21: =IF(I21="","",IF(I21='ARRS Summary'!B$30,L21/2,K21)/12*N21) -> 
J22: =IF(I22="","",IF(I22='ARRS Summary'!$B$30,"Enter A4C band here","No Entry Required")) ->  | K22: =VLOOKUP(I22,Data!F$4:H$21,3,FALSE) ->  | L22: =IF(I22<>'ARRS Summary'!B$30,"",_xlfn.IFS(J22=Data!$B$4,Data!$H$11,J22=Data!$B$5,Data!$H$5,J22=Data!$B$6,Data!$H$21,J22=Data!$B$7,Data!$H$6,J22=Data!$B$8,Data!$H$19)) ->  | Q22: =IF(I22="","",IF(I22='ARRS Summary'!B$30,L22/2,K22)/12*N22) -> 
J23: =IF(I23="","",IF(I23='ARRS Summary'!$B$30,"Enter A4C band here","No Entry Required")) ->  | K23: =VLOOKUP(I23,Data!F$4:H$21,3,FALSE) ->  | L23: =IF(I23<>'ARRS Summary'!B$30,"",_xlfn.IFS(J23=Data!$B$4,Data!$H$11,J23=Data!$B$5,Data!$H$5,J23=Data!$B$6,Data!$H$21,J23=Data!$B$7,Data!$H$6,J23=Data!$B$8,Data!$H$19)) ->  | Q23: =IF(I23="","",IF(I23='ARRS Summary'!B$30,L23/2,K23)/12*N23) -> 
J24: =IF(I24="","",IF(I24='ARRS Summary'!$B$30,"Enter A4C band here","No Entry Required")) ->  | K24: =VLOOKUP(I24,Data!F$4:H$21,3,FALSE) ->  | L24: =IF(I24<>'ARRS Summary'!B$30,"",_xlfn.IFS(J24=Data!$B$4,Data!$H$11,J24=Data!$B$5,Data!$H$5,J24=Data!$B$6,Data!$H$21,J24=Data!$B$7,Data!$H$6,J24=Data!$B$8,Data!$H$19)) ->  | Q24: =IF(I24="","",IF(I24='ARRS Summary'!B$30,L24/2,K24)/12*N24) -> 
J25: =IF(I25="","",IF(I25='ARRS Summary'!$B$30,"Enter A4C band here","No Entry Required")) ->  | K25: =VLOOKUP(I25,Data!F$4:H$21,3,FALSE) ->  | L25: =IF(I25<>'ARRS Summary'!B$30,"",_xlfn.IFS(J25=Data!$B$4,Data!$H$11,J25=Data!$B$5,Data!$H$5,J25=Data!$B$6,Data!$H$21,J25=Data!$B$7,Data!$H$6,J25=Data!$B$8,Data!$H$19)) ->  | Q25: =IF(I25="","",IF(I25='ARRS Summary'!B$30,L25/2,K25)/12*N25) -> 
J26: =IF(I26="","",IF(I26='ARRS Summary'!$B$30,"Enter A4C band here","No Entry Required")) ->  | K26: =VLOOKUP(I26,Data!F$4:H$21,3,FALSE) ->  | L26: =IF(I26<>'ARRS Summary'!B$30,"",_xlfn.IFS(J26=Data!$B$4,Data!$H$11,J26=Data!$B$5,Data!$H$5,J26=Data!$B$6,Data!$H$21,J26=Data!$B$7,Data!$H$6,J26=Data!$B$8,Data!$H$19)) ->  | Q26: =IF(I26="","",IF(I26='ARRS Summary'!B$30,L26/2,K26)/12*N26) -> 
J27: =IF(I27="","",IF(I27='ARRS Summary'!$B$30,"Enter A4C band here","No Entry Required")) ->  | K27: =VLOOKUP(I27,Data!F$4:H$21,3,FALSE) ->  | L27: =IF(I27<>'ARRS Summary'!B$30,"",_xlfn.IFS(J27=Data!$B$4,Data!$H$11,J27=Data!$B$5,Data!$H$5,J27=Data!$B$6,Data!$H$21,J27=Data!$B$7,Data!$H$6,J27=Data!$B$8,Data!$H$19)) ->  | Q27: =IF(I27="","",IF(I27='ARRS Summary'!B$30,L27/2,K27)/12*N27) ->  | AC27: =IF(AB27="","",IF(AB27<$Q27,0,AB27-AF27)) -> 
J28: =IF(I28="","",IF(I28='ARRS Summary'!$B$30,"Enter A4C band here","No Entry Required")) ->  | K28: =VLOOKUP(I28,Data!F$4:H$21,3,FALSE) ->  | L28: =IF(I28<>'ARRS Summary'!B$30,"",_xlfn.IFS(J28=Data!$B$4,Data!$H$11,J28=Data!$B$5,Data!$H$5,J28=Data!$B$6,Data!$H$21,J28=Data!$B$7,Data!$H$6,J28=Data!$B$8,Data!$H$19)) ->  | Q28: =IF(I28="","",IF(I28='ARRS Summary'!B$30,L28/2,K28)/12*N28) -> 
J29: =IF(I29="","",IF(I29='ARRS Summary'!$B$30,"Enter A4C band here","No Entry Required")) ->  | K29: =VLOOKUP(I29,Data!F$4:H$21,3,FALSE) ->  | L29: =IF(I29<>'ARRS Summary'!B$30,"",_xlfn.IFS(J29=Data!$B$4,Data!$H$11,J29=Data!$B$5,Data!$H$5,J29=Data!$B$6,Data!$H$21,J29=Data!$B$7,Data!$H$6,J29=Data!$B$8,Data!$H$19)) ->  | Q29: =IF(I29="","",IF(I29='ARRS Summary'!B$30,L29/2,K29)/12*N29) -> 
J30: =IF(I30="","",IF(I30='ARRS Summary'!$B$30,"Enter A4C band here","No Entry Required")) ->  | K30: =VLOOKUP(I30,Data!F$4:H$21,3,FALSE) ->  | L30: =IF(I30<>'ARRS Summary'!B$30,"",_xlfn.IFS(J30=Data!$B$4,Data!$H$11,J30=Data!$B$5,Data!$H$5,J30=Data!$B$6,Data!$H$21,J30=Data!$B$7,Data!$H$6,J30=Data!$B$8,Data!$H$19)) ->  | Q30: =IF(I30="","",IF(I30='ARRS Summary'!B$30,L30/2,K30)/12*N30) -> 
J31: =IF(I31="","",IF(I31='ARRS Summary'!$B$30,"Enter A4C band here","No Entry Required")) ->  | K31: =VLOOKUP(I31,Data!F$4:H$21,3,FALSE) ->  | L31: =IF(I31<>'ARRS Summary'!B$30,"",_xlfn.IFS(J31=Data!$B$4,Data!$H$11,J31=Data!$B$5,Data!$H$5,J31=Data!$B$6,Data!$H$21,J31=Data!$B$7,Data!$H$6,J31=Data!$B$8,Data!$H$19)) ->  | Q31: =IF(I31="","",IF(I31='ARRS Summary'!B$30,L31/2,K31)/12*N31) -> 
J32: =IF(I32="","",IF(I32='ARRS Summary'!$B$30,"Enter A4C band here","No Entry Required")) ->  | K32: =VLOOKUP(I32,Data!F$4:H$21,3,FALSE) ->  | L32: =IF(I32<>'ARRS Summary'!B$30,"",_xlfn.IFS(J32=Data!$B$4,Data!$H$11,J32=Data!$B$5,Data!$H$5,J32=Data!$B$6,Data!$H$21,J32=Data!$B$7,Data!$H$6,J32=Data!$B$8,Data!$H$19)) ->  | Q32: =IF(I32="","",IF(I32='ARRS Summary'!B$30,L32/2,K32)/12*N32) -> 
J33: =IF(I33="","",IF(I33='ARRS Summary'!$B$30,"Enter A4C band here","No Entry Required")) ->  | K33: =VLOOKUP(I33,Data!F$4:H$21,3,FALSE) ->  | L33: =IF(I33<>'ARRS Summary'!B$30,"",_xlfn.IFS(J33=Data!$B$4,Data!$H$11,J33=Data!$B$5,Data!$H$5,J33=Data!$B$6,Data!$H$21,J33=Data!$B$7,Data!$H$6,J33=Data!$B$8,Data!$H$19)) ->  | Q33: =IF(I33="","",IF(I33='ARRS Summary'!B$30,L33/2,K33)/12*N33) -> 
J34: =IF(I34="","",IF(I34='ARRS Summary'!$B$30,"Enter A4C band here","No Entry Required")) ->  | K34: =VLOOKUP(I34,Data!F$4:H$21,3,FALSE) ->  | L34: =IF(I34<>'ARRS Summary'!B$30,"",_xlfn.IFS(J34=Data!$B$4,Data!$H$11,J34=Data!$B$5,Data!$H$5,J34=Data!$B$6,Data!$H$21,J34=Data!$B$7,Data!$H$6,J34=Data!$B$8,Data!$H$19)) ->  | Q34: =IF(I34="","",IF(I34='ARRS Summary'!B$30,L34/2,K34)/12*N34) -> 
J35: =IF(I35="","",IF(I35='ARRS Summary'!$B$30,"Enter A4C band here","No Entry Required")) ->  | K35: =VLOOKUP(I35,Data!F$4:H$21,3,FALSE) ->  | L35: =IF(I35<>'ARRS Summary'!B$30,"",_xlfn.IFS(J35=Data!$B$4,Data!$H$11,J35=Data!$B$5,Data!$H$5,J35=Data!$B$6,Data!$H$21,J35=Data!$B$7,Data!$H$6,J35=Data!$B$8,Data!$H$19)) ->  | Q35: =IF(I35="","",IF(I35='ARRS Summary'!B$30,L35/2,K35)/12*N35) -> 
J36: =IF(I36="","",IF(I36='ARRS Summary'!$B$30,"Enter A4C band here","No Entry Required")) ->  | K36: =VLOOKUP(I36,Data!F$4:H$21,3,FALSE) ->  | L36: =IF(I36<>'ARRS Summary'!B$30,"",_xlfn.IFS(J36=Data!$B$4,Data!$H$11,J36=Data!$B$5,Data!$H$5,J36=Data!$B$6,Data!$H$21,J36=Data!$B$7,Data!$H$6,J36=Data!$B$8,Data!$H$19)) ->  | Q36: =IF(I36="","",IF(I36='ARRS Summary'!B$30,L36/2,K36)/12*N36) -> 
J37: =IF(I37="","",IF(I37='ARRS Summary'!$B$30,"Enter A4C band here","No Entry Required")) ->  | K37: =VLOOKUP(I37,Data!F$4:H$21,3,FALSE) ->  | L37: =IF(I37<>'ARRS Summary'!B$30,"",_xlfn.IFS(J37=Data!$B$4,Data!$H$11,J37=Data!$B$5,Data!$H$5,J37=Data!$B$6,Data!$H$21,J37=Data!$B$7,Data!$H$6,J37=Data!$B$8,Data!$H$19)) ->  | Q37: =IF(I37="","",IF(I37='ARRS Summary'!B$30,L37/2,K37)/12*N37) -> 
J38: =IF(I38="","",IF(I38='ARRS Summary'!$B$30,"Enter A4C band here","No Entry Required")) ->  | K38: =VLOOKUP(I38,Data!F$4:H$21,3,FALSE) ->  | L38: =IF(I38<>'ARRS Summary'!B$30,"",_xlfn.IFS(J38=Data!$B$4,Data!$H$11,J38=Data!$B$5,Data!$H$5,J38=Data!$B$6,Data!$H$21,J38=Data!$B$7,Data!$H$6,J38=Data!$B$8,Data!$H$19)) ->  | Q38: =IF(I38="","",IF(I38='ARRS Summary'!B$30,L38/2,K38)/12*N38) -> 
J39: =IF(I39="","",IF(I39='ARRS Summary'!$B$30,"Enter A4C band here","No Entry Required")) ->  | K39: =VLOOKUP(I39,Data!F$4:H$21,3,FALSE) ->  | L39: =IF(I39<>'ARRS Summary'!B$30,"",_xlfn.IFS(J39=Data!$B$4,Data!$H$11,J39=Data!$B$5,Data!$H$5,J39=Data!$B$6,Data!$H$21,J39=Data!$B$7,Data!$H$6,J39=Data!$B$8,Data!$H$19)) ->  | Q39: =IF(I39="","",IF(I39='ARRS Summary'!B$30,L39/2,K39)/12*N39) -> 
J40: =IF(I40="","",IF(I40='ARRS Summary'!$B$30,"Enter A4C band here","No Entry Required")) ->  | K40: =VLOOKUP(I40,Data!F$4:H$21,3,FALSE) ->  | L40: =IF(I40<>'ARRS Summary'!B$30,"",_xlfn.IFS(J40=Data!$B$4,Data!$H$11,J40=Data!$B$5,Data!$H$5,J40=Data!$B$6,Data!$H$21,J40=Data!$B$7,Data!$H$6,J40=Data!$B$8,Data!$H$19)) ->  | Q40: =IF(I40="","",IF(I40='ARRS Summary'!B$30,L40/2,K40)/12*N40) -> 
J41: =IF(I41="","",IF(I41='ARRS Summary'!$B$30,"Enter A4C band here","No Entry Required")) ->  | K41: =VLOOKUP(I41,Data!F$4:H$21,3,FALSE) ->  | L41: =IF(I41<>'ARRS Summary'!B$30,"",_xlfn.IFS(J41=Data!$B$4,Data!$H$11,J41=Data!$B$5,Data!$H$5,J41=Data!$B$6,Data!$H$21,J41=Data!$B$7,Data!$H$6,J41=Data!$B$8,Data!$H$19)) ->  | Q41: =IF(I41="","",IF(I41='ARRS Summary'!B$30,L41/2,K41)/12*N41) -> 
J42: =IF(I42="","",IF(I42='ARRS Summary'!$B$30,"Enter A4C band here","No Entry Required")) ->  | K42: =VLOOKUP(I42,Data!F$4:H$21,3,FALSE) ->  | L42: =IF(I42<>'ARRS Summary'!B$30,"",_xlfn.IFS(J42=Data!$B$4,Data!$H$11,J42=Data!$B$5,Data!$H$5,J42=Data!$B$6,Data!$H$21,J42=Data!$B$7,Data!$H$6,J42=Data!$B$8,Data!$H$19)) ->  | Q42: =IF(I42="","",IF(I42='ARRS Summary'!B$30,L42/2,K42)/12*N42) -> 
J43: =IF(I43="","",IF(I43='ARRS Summary'!$B$30,"Enter A4C band here","No Entry Required")) ->  | K43: =VLOOKUP(I43,Data!F$4:H$21,3,FALSE) ->  | L43: =IF(I43<>'ARRS Summary'!B$30,"",_xlfn.IFS(J43=Data!$B$4,Data!$H$11,J43=Data!$B$5,Data!$H$5,J43=Data!$B$6,Data!$H$21,J43=Data!$B$7,Data!$H$6,J43=Data!$B$8,Data!$H$19)) ->  | Q43: =IF(I43="","",IF(I43='ARRS Summary'!B$30,L43/2,K43)/12*N43) -> 
J44: =IF(I44="","",IF(I44='ARRS Summary'!$B$30,"Enter A4C band here","No Entry Required")) ->  | K44: =VLOOKUP(I44,Data!F$4:H$21,3,FALSE) ->  | L44: =IF(I44<>'ARRS Summary'!B$30,"",_xlfn.IFS(J44=Data!$B$4,Data!$H$11,J44=Data!$B$5,Data!$H$5,J44=Data!$B$6,Data!$H$21,J44=Data!$B$7,Data!$H$6,J44=Data!$B$8,Data!$H$19)) ->  | Q44: =IF(I44="","",IF(I44='ARRS Summary'!B$30,L44/2,K44)/12*N44) -> 
J45: =IF(I45="","",IF(I45='ARRS Summary'!$B$30,"Enter A4C band here","No Entry Required")) ->  | K45: =VLOOKUP(I45,Data!F$4:H$21,3,FALSE) ->  | L45: =IF(I45<>'ARRS Summary'!B$30,"",_xlfn.IFS(J45=Data!$B$4,Data!$H$11,J45=Data!$B$5,Data!$H$5,J45=Data!$B$6,Data!$H$21,J45=Data!$B$7,Data!$H$6,J45=Data!$B$8,Data!$H$19)) ->  | Q45: =IF(I45="","",IF(I45='ARRS Summary'!B$30,L45/2,K45)/12*N45) -> 
J46: =IF(I46="","",IF(I46='ARRS Summary'!$B$30,"Enter A4C band here","No Entry Required")) ->  | K46: =VLOOKUP(I46,Data!F$4:H$21,3,FALSE) ->  | L46: =IF(I46<>'ARRS Summary'!B$30,"",_xlfn.IFS(J46=Data!$B$4,Data!$H$11,J46=Data!$B$5,Data!$H$5,J46=Data!$B$6,Data!$H$21,J46=Data!$B$7,Data!$H$6,J46=Data!$B$8,Data!$H$19)) ->  | Q46: =IF(I46="","",IF(I46='ARRS Summary'!B$30,L46/2,K46)/12*N46) -> 
J47: =IF(I47="","",IF(I47='ARRS Summary'!$B$30,"Enter A4C band here","No Entry Required")) ->  | K47: =VLOOKUP(I47,Data!F$4:H$21,3,FALSE) ->  | L47: =IF(I47<>'ARRS Summary'!B$30,"",_xlfn.IFS(J47=Data!$B$4,Data!$H$11,J47=Data!$B$5,Data!$H$5,J47=Data!$B$6,Data!$H$21,J47=Data!$B$7,Data!$H$6,J47=Data!$B$8,Data!$H$19)) ->  | Q47: =IF(I47="","",IF(I47='ARRS Summary'!B$30,L47/2,K47)/12*N47) -> 
J48: =IF(I48="","",IF(I48='ARRS Summary'!$B$30,"Enter A4C band here","No Entry Required")) ->  | K48: =VLOOKUP(I48,Data!F$4:H$21,3,FALSE) ->  | L48: =IF(I48<>'ARRS Summary'!B$30,"",_xlfn.IFS(J48=Data!$B$4,Data!$H$11,J48=Data!$B$5,Data!$H$5,J48=Data!$B$6,Data!$H$21,J48=Data!$B$7,Data!$H$6,J48=Data!$B$8,Data!$H$19)) ->  | Q48: =IF(I48="","",IF(I48='ARRS Summary'!B$30,L48/2,K48)/12*N48) -> 
J49: =IF(I49="","",IF(I49='ARRS Summary'!$B$30,"Enter A4C band here","No Entry Required")) ->  | K49: =VLOOKUP(I49,Data!F$4:H$21,3,FALSE) ->  | L49: =IF(I49<>'ARRS Summary'!B$30,"",_xlfn.IFS(J49=Data!$B$4,Data!$H$11,J49=Data!$B$5,Data!$H$5,J49=Data!$B$6,Data!$H$21,J49=Data!$B$7,Data!$H$6,J49=Data!$B$8,Data!$H$19)) ->  | Q49: =IF(I49="","",IF(I49='ARRS Summary'!B$30,L49/2,K49)/12*N49) -> 
J50: =IF(I50="","",IF(I50='ARRS Summary'!$B$30,"Enter A4C band here","No Entry Required")) ->  | K50: =VLOOKUP(I50,Data!F$4:H$21,3,FALSE) ->  | L50: =IF(I50<>'ARRS Summary'!B$30,"",_xlfn.IFS(J50=Data!$B$4,Data!$H$11,J50=Data!$B$5,Data!$H$5,J50=Data!$B$6,Data!$H$21,J50=Data!$B$7,Data!$H$6,J50=Data!$B$8,Data!$H$19)) ->  | Q50: =IF(I50="","",IF(I50='ARRS Summary'!B$30,L50/2,K50)/12*N50) -> 
J51: =IF(I51="","",IF(I51='ARRS Summary'!$B$30,"Enter A4C band here","No Entry Required")) ->  | K51: =VLOOKUP(I51,Data!F$4:H$21,3,FALSE) ->  | L51: =IF(I51<>'ARRS Summary'!B$30,"",_xlfn.IFS(J51=Data!$B$4,Data!$H$11,J51=Data!$B$5,Data!$H$5,J51=Data!$B$6,Data!$H$21,J51=Data!$B$7,Data!$H$6,J51=Data!$B$8,Data!$H$19)) ->  | Q51: =IF(I51="","",IF(I51='ARRS Summary'!B$30,L51/2,K51)/12*N51) -> 
J52: =IF(I52="","",IF(I52='ARRS Summary'!$B$30,"Enter A4C band here","No Entry Required")) ->  | K52: =VLOOKUP(I52,Data!F$4:H$21,3,FALSE) ->  | L52: =IF(I52<>'ARRS Summary'!B$30,"",_xlfn.IFS(J52=Data!$B$4,Data!$H$11,J52=Data!$B$5,Data!$H$5,J52=Data!$B$6,Data!$H$21,J52=Data!$B$7,Data!$H$6,J52=Data!$B$8,Data!$H$19)) ->  | Q52: =IF(I52="","",IF(I52='ARRS Summary'!B$30,L52/2,K52)/12*N52) -> 
J53: =IF(I53="","",IF(I53='ARRS Summary'!$B$30,"Enter A4C band here","No Entry Required")) ->  | K53: =VLOOKUP(I53,Data!F$4:H$21,3,FALSE) ->  | L53: =IF(I53<>'ARRS Summary'!B$30,"",_xlfn.IFS(J53=Data!$B$4,Data!$H$11,J53=Data!$B$5,Data!$H$5,J53=Data!$B$6,Data!$H$21,J53=Data!$B$7,Data!$H$6,J53=Data!$B$8,Data!$H$19)) ->  | Q53: =IF(I53="","",IF(I53='ARRS Summary'!B$30,L53/2,K53)/12*N53) -> 
J54: =IF(I54="","",IF(I54='ARRS Summary'!$B$30,"Enter A4C band here","No Entry Required")) ->  | K54: =VLOOKUP(I54,Data!F$4:H$21,3,FALSE) ->  | L54: =IF(I54<>'ARRS Summary'!B$30,"",_xlfn.IFS(J54=Data!$B$4,Data!$H$11,J54=Data!$B$5,Data!$H$5,J54=Data!$B$6,Data!$H$21,J54=Data!$B$7,Data!$H$6,J54=Data!$B$8,Data!$H$19)) ->  | Q54: =IF(I54="","",IF(I54='ARRS Summary'!B$30,L54/2,K54)/12*N54) -> 
J55: =IF(I55="","",IF(I55='ARRS Summary'!$B$30,"Enter A4C band here","No Entry Required")) ->  | K55: =VLOOKUP(I55,Data!F$4:H$21,3,FALSE) ->  | L55: =IF(I55<>'ARRS Summary'!B$30,"",_xlfn.IFS(J55=Data!$B$4,Data!$H$11,J55=Data!$B$5,Data!$H$5,J55=Data!$B$6,Data!$H$21,J55=Data!$B$7,Data!$H$6,J55=Data!$B$8,Data!$H$19)) ->  | Q55: =IF(I55="","",IF(I55='ARRS Summary'!B$30,L55/2,K55)/12*N55) -> 
J56: =IF(I56="","",IF(I56='ARRS Summary'!$B$30,"Enter A4C band here","No Entry Required")) ->  | K56: =VLOOKUP(I56,Data!F$4:H$21,3,FALSE) ->  | L56: =IF(I56<>'ARRS Summary'!B$30,"",_xlfn.IFS(J56=Data!$B$4,Data!$H$11,J56=Data!$B$5,Data!$H$5,J56=Data!$B$6,Data!$H$21,J56=Data!$B$7,Data!$H$6,J56=Data!$B$8,Data!$H$19)) ->  | Q56: =IF(I56="","",IF(I56='ARRS Summary'!B$30,L56/2,K56)/12*N56) -> 
J57: =IF(I57="","",IF(I57='ARRS Summary'!$B$30,"Enter A4C band here","No Entry Required")) ->  | K57: =VLOOKUP(I57,Data!F$4:H$21,3,FALSE) ->  | L57: =IF(I57<>'ARRS Summary'!B$30,"",_xlfn.IFS(J57=Data!$B$4,Data!$H$11,J57=Data!$B$5,Data!$H$5,J57=Data!$B$6,Data!$H$21,J57=Data!$B$7,Data!$H$6,J57=Data!$B$8,Data!$H$19)) ->  | Q57: =IF(I57="","",IF(I57='ARRS Summary'!B$30,L57/2,K57)/12*N57) -> 
J58: =IF(I58="","",IF(I58='ARRS Summary'!$B$30,"Enter A4C band here","No Entry Required")) ->  | K58: =VLOOKUP(I58,Data!F$4:H$21,3,FALSE) ->  | L58: =IF(I58<>'ARRS Summary'!B$30,"",_xlfn.IFS(J58=Data!$B$4,Data!$H$11,J58=Data!$B$5,Data!$H$5,J58=Data!$B$6,Data!$H$21,J58=Data!$B$7,Data!$H$6,J58=Data!$B$8,Data!$H$19)) ->  | Q58: =IF(I58="","",IF(I58='ARRS Summary'!B$30,L58/2,K58)/12*N58) -> 
J59: =IF(I59="","",IF(I59='ARRS Summary'!$B$30,"Enter A4C band here","No Entry Required")) ->  | K59: =VLOOKUP(I59,Data!F$4:H$21,3,FALSE) ->  | L59: =IF(I59<>'ARRS Summary'!B$30,"",_xlfn.IFS(J59=Data!$B$4,Data!$H$11,J59=Data!$B$5,Data!$H$5,J59=Data!$B$6,Data!$H$21,J59=Data!$B$7,Data!$H$6,J59=Data!$B$8,Data!$H$19)) ->  | Q59: =IF(I59="","",IF(I59='ARRS Summary'!B$30,L59/2,K59)/12*N59) -> 
J60: =IF(I60="","",IF(I60='ARRS Summary'!$B$30,"Enter A4C band here","No Entry Required")) ->  | K60: =VLOOKUP(I60,Data!F$4:H$21,3,FALSE) ->  | L60: =IF(I60<>'ARRS Summary'!B$30,"",_xlfn.IFS(J60=Data!$B$4,Data!$H$11,J60=Data!$B$5,Data!$H$5,J60=Data!$B$6,Data!$H$21,J60=Data!$B$7,Data!$H$6,J60=Data!$B$8,Data!$H$19)) ->  | Q60: =IF(I60="","",IF(I60='ARRS Summary'!B$30,L60/2,K60)/12*N60) -> 
J61: =IF(I61="","",IF(I61='ARRS Summary'!$B$30,"Enter A4C band here","No Entry Required")) ->  | K61: =VLOOKUP(I61,Data!F$4:H$21,3,FALSE) ->  | L61: =IF(I61<>'ARRS Summary'!B$30,"",_xlfn.IFS(J61=Data!$B$4,Data!$H$11,J61=Data!$B$5,Data!$H$5,J61=Data!$B$6,Data!$H$21,J61=Data!$B$7,Data!$H$6,J61=Data!$B$8,Data!$H$19)) ->  | Q61: =IF(I61="","",IF(I61='ARRS Summary'!B$30,L61/2,K61)/12*N61) -> 
J62: =IF(I62="","",IF(I62='ARRS Summary'!$B$30,"Enter A4C band here","No Entry Required")) ->  | K62: =VLOOKUP(I62,Data!F$4:H$21,3,FALSE) ->  | L62: =IF(I62<>'ARRS Summary'!B$30,"",_xlfn.IFS(J62=Data!$B$4,Data!$H$11,J62=Data!$B$5,Data!$H$5,J62=Data!$B$6,Data!$H$21,J62=Data!$B$7,Data!$H$6,J62=Data!$B$8,Data!$H$19)) ->  | Q62: =IF(I62="","",IF(I62='ARRS Summary'!B$30,L62/2,K62)/12*N62) -> 
J63: =IF(I63="","",IF(I63='ARRS Summary'!$B$30,"Enter A4C band here","No Entry Required")) ->  | K63: =VLOOKUP(I63,Data!F$4:H$21,3,FALSE) ->  | L63: =IF(I63<>'ARRS Summary'!B$30,"",_xlfn.IFS(J63=Data!$B$4,Data!$H$11,J63=Data!$B$5,Data!$H$5,J63=Data!$B$6,Data!$H$21,J63=Data!$B$7,Data!$H$6,J63=Data!$B$8,Data!$H$19)) ->  | Q63: =IF(I63="","",IF(I63='ARRS Summary'!B$30,L63/2,K63)/12*N63) -> 
J64: =IF(I64="","",IF(I64='ARRS Summary'!$B$30,"Enter A4C band here","No Entry Required")) ->  | K64: =VLOOKUP(I64,Data!F$4:H$21,3,FALSE) ->  | L64: =IF(I64<>'ARRS Summary'!B$30,"",_xlfn.IFS(J64=Data!$B$4,Data!$H$11,J64=Data!$B$5,Data!$H$5,J64=Data!$B$6,Data!$H$21,J64=Data!$B$7,Data!$H$6,J64=Data!$B$8,Data!$H$19)) ->  | Q64: =IF(I64="","",IF(I64='ARRS Summary'!B$30,L64/2,K64)/12*N64) -> 
J65: =IF(I65="","",IF(I65='ARRS Summary'!$B$30,"Enter A4C band here","No Entry Required")) ->  | K65: =VLOOKUP(I65,Data!F$4:H$21,3,FALSE) ->  | L65: =IF(I65<>'ARRS Summary'!B$30,"",_xlfn.IFS(J65=Data!$B$4,Data!$H$11,J65=Data!$B$5,Data!$H$5,J65=Data!$B$6,Data!$H$21,J65=Data!$B$7,Data!$H$6,J65=Data!$B$8,Data!$H$19)) ->  | Q65: =IF(I65="","",IF(I65='ARRS Summary'!B$30,L65/2,K65)/12*N65) -> 
J66: =IF(I66="","",IF(I66='ARRS Summary'!$B$30,"Enter A4C band here","No Entry Required")) ->  | K66: =VLOOKUP(I66,Data!F$4:H$21,3,FALSE) ->  | L66: =IF(I66<>'ARRS Summary'!B$30,"",_xlfn.IFS(J66=Data!$B$4,Data!$H$11,J66=Data!$B$5,Data!$H$5,J66=Data!$B$6,Data!$H$21,J66=Data!$B$7,Data!$H$6,J66=Data!$B$8,Data!$H$19)) ->  | Q66: =IF(I66="","",IF(I66='ARRS Summary'!B$30,L66/2,K66)/12*N66) -> 
J67: =IF(I67="","",IF(I67='ARRS Summary'!$B$30,"Enter A4C band here","No Entry Required")) ->  | K67: =VLOOKUP(I67,Data!F$4:H$21,3,FALSE) ->  | L67: =IF(I67<>'ARRS Summary'!B$30,"",_xlfn.IFS(J67=Data!$B$4,Data!$H$11,J67=Data!$B$5,Data!$H$5,J67=Data!$B$6,Data!$H$21,J67=Data!$B$7,Data!$H$6,J67=Data!$B$8,Data!$H$19)) ->  | Q67: =IF(I67="","",IF(I67='ARRS Summary'!B$30,L67/2,K67)/12*N67) -> 
J68: =IF(I68="","",IF(I68='ARRS Summary'!$B$30,"Enter A4C band here","No Entry Required")) ->  | K68: =VLOOKUP(I68,Data!F$4:H$21,3,FALSE) ->  | L68: =IF(I68<>'ARRS Summary'!B$30,"",_xlfn.IFS(J68=Data!$B$4,Data!$H$11,J68=Data!$B$5,Data!$H$5,J68=Data!$B$6,Data!$H$21,J68=Data!$B$7,Data!$H$6,J68=Data!$B$8,Data!$H$19)) ->  | Q68: =IF(I68="","",IF(I68='ARRS Summary'!B$30,L68/2,K68)/12*N68) -> 
J69: =IF(I69="","",IF(I69='ARRS Summary'!$B$30,"Enter A4C band here","No Entry Required")) ->  | K69: =VLOOKUP(I69,Data!F$4:H$21,3,FALSE) ->  | L69: =IF(I69<>'ARRS Summary'!B$30,"",_xlfn.IFS(J69=Data!$B$4,Data!$H$11,J69=Data!$B$5,Data!$H$5,J69=Data!$B$6,Data!$H$21,J69=Data!$B$7,Data!$H$6,J69=Data!$B$8,Data!$H$19)) ->  | Q69: =IF(I69="","",IF(I69='ARRS Summary'!B$30,L69/2,K69)/12*N69) ->  | S69: =IF(R69="","",IF(R69<V69,0,R69-V69)) ->  | X69: =IF(W69="","",IF(W69<AA69,0,W69-AA69)) ->  | AH69: =IF(AG69="","",IF(AG69<AK69,0,AG69-AK69)) ->  | AM69: =IF(AL69="","",IF(AL69<AP69,0,AL69-AP69)) ->  | AR69: =IF(AQ69="","",IF(AQ69<AU69,0,AQ69-AU69)) ->  | AT69: =IF(AQ69="","",MIN(AQ69,$Q69)) ->  | AU69: =IF(AQ69="","","Please enter to match portal") ->  | AW69: =IF(AV69="","",IF(AV69<AZ69,0,AV69-AZ69)) ->  | BB69: =IF(BA69="","",IF(BA69<BE69,0,BA69-BE69)) ->  | BG69: =IF(BF69="","",IF(BF69<BJ69,0,BF69-BJ69)) ->  | BL69: =IF(BK69="","",IF(BK69<BO69,0,BK69-BO69)) ->  | BQ69: =IF(BP69="","",IF(BP69<BT69,0,BP69-BT69)) ->  | BV69: =IF(BU69="","",IF(BU69<BY69,0,BU69-BY69)) -> 
J70: =IF(I70="","",IF(I70='ARRS Summary'!$B$30,"Enter A4C band here","No Entry Required")) ->  | K70: =VLOOKUP(I70,Data!F$4:H$21,3,FALSE) ->  | L70: =IF(I70<>'ARRS Summary'!B$30,"",_xlfn.IFS(J70=Data!$B$4,Data!$H$11,J70=Data!$B$5,Data!$H$5,J70=Data!$B$6,Data!$H$21,J70=Data!$B$7,Data!$H$6,J70=Data!$B$8,Data!$H$19)) ->  | N70: =IF(M70="","",M70/37.5) ->  | Q70: =IF(I70="","",IF(I70='ARRS Summary'!B$30,L70/2,K70)/12*N70) ->  | U70: =IF(R70="","",MIN(R70,$Q70)) ->  | V70: =IF(R70="","","Please enter to match portal") ->  | Z70: =IF(W70="","",MIN(W70,$Q70)) ->  | AA70: =IF(W70="","","Please enter to match portal") ->  | AE70: =IF(AB70="","",MIN(AB70,$Q70)) ->  | AF70: =IF(AB70="","","Please enter to match portal") ->  | AJ70: =IF(AG70="","",MIN(AG70,$Q70)) ->  | AK70: =IF(AG70="","","Please enter to match portal") ->  | AO70: =IF(AL70="","",MIN(AL70,$Q70)) ->  | AP70: =IF(AL70="","","Please enter to match portal") ->  | AY70: =IF(AV70="","",MIN(AV70,$Q70)) ->  | AZ70: =IF(AV70="","","Please enter to match portal") ->  | BD70: =IF(BA70="","",MIN(BA70,$Q70)) ->  | BE70: =IF(BA70="","","Please enter to match portal") ->  | BI70: =IF(BF70="","",MIN(BF70,$Q70)) ->  | BJ70: =IF(BF70="","","Please enter to match portal") ->  | BN70: =IF(BK70="","",MIN(BK70,$Q70)) ->  | BO70: =IF(BK70="","","Please enter to match portal") ->  | BS70: =IF(BP70="","",MIN(BP70,$Q70)) ->  | BT70: =IF(BP70="","","Please enter to match portal") ->  | BX70: =IF(BU70="","",MIN(BU70,$Q70)) ->  | BY70: =IF(BU70="","","Please enter to match portal") ->  | BZ70: =IF(I70="","",SUM(V70,AA70,AF70,AK70,AP70,AU70,AZ70,BE70,BJ70,BO70,BT70,BY70)) ->  | CA70: =IF(I70="","",SUM(S70,X70,AC70,AH70,AM70,AR70,AW70,BB70,BG70,BL70,BQ70,BV70)) ->  | CB70: =IF(I70="","",SUM(T70,Y70,AD70,AI70,AN70,AS70,AX70,BC70,BH70,BM70,BR70,BW70)) -> 
J71: =IF(I71="","",IF(I71='ARRS Summary'!$B$30,"Enter A4C band here","No Entry Required")) ->  | K71: =VLOOKUP(I71,Data!F$4:H$21,3,FALSE) ->  | L71: =IF(I71<>'ARRS Summary'!B$30,"",_xlfn.IFS(J71=Data!$B$4,Data!$H$11,J71=Data!$B$5,Data!$H$5,J71=Data!$B$6,Data!$H$21,J71=Data!$B$7,Data!$H$6,J71=Data!$B$8,Data!$H$19)) ->  | Q71: =IF(I71="","",IF(I71='ARRS Summary'!B$30,L71/2,K71)/12*N71) -> 
J72: =IF(I72="","",IF(I72='ARRS Summary'!$B$30,"Enter A4C band here","No Entry Required")) ->  | K72: =VLOOKUP(I72,Data!F$4:H$21,3,FALSE) ->  | L72: =IF(I72<>'ARRS Summary'!B$30,"",_xlfn.IFS(J72=Data!$B$4,Data!$H$11,J72=Data!$B$5,Data!$H$5,J72=Data!$B$6,Data!$H$21,J72=Data!$B$7,Data!$H$6,J72=Data!$B$8,Data!$H$19)) ->  | Q72: =IF(I72="","",IF(I72='ARRS Summary'!B$30,L72/2,K72)/12*N72) -> 
J73: =IF(I73="","",IF(I73='ARRS Summary'!$B$30,"Enter A4C band here","No Entry Required")) ->  | K73: =VLOOKUP(I73,Data!F$4:H$21,3,FALSE) ->  | L73: =IF(I73<>'ARRS Summary'!B$30,"",_xlfn.IFS(J73=Data!$B$4,Data!$H$11,J73=Data!$B$5,Data!$H$5,J73=Data!$B$6,Data!$H$21,J73=Data!$B$7,Data!$H$6,J73=Data!$B$8,Data!$H$19)) ->  | Q73: =IF(I73="","",IF(I73='ARRS Summary'!B$30,L73/2,K73)/12*N73) -> 
J74: =IF(I74="","",IF(I74='ARRS Summary'!$B$30,"Enter A4C band here","No Entry Required")) ->  | K74: =VLOOKUP(I74,Data!F$4:H$21,3,FALSE) ->  | L74: =IF(I74<>'ARRS Summary'!B$30,"",_xlfn.IFS(J74=Data!$B$4,Data!$H$11,J74=Data!$B$5,Data!$H$5,J74=Data!$B$6,Data!$H$21,J74=Data!$B$7,Data!$H$6,J74=Data!$B$8,Data!$H$19)) ->  | Q74: =IF(I74="","",IF(I74='ARRS Summary'!B$30,L74/2,K74)/12*N74) -> 
J75: =IF(I75="","",IF(I75='ARRS Summary'!$B$30,"Enter A4C band here","No Entry Required")) ->  | K75: =VLOOKUP(I75,Data!F$4:H$21,3,FALSE) ->  | L75: =IF(I75<>'ARRS Summary'!B$30,"",_xlfn.IFS(J75=Data!$B$4,Data!$H$11,J75=Data!$B$5,Data!$H$5,J75=Data!$B$6,Data!$H$21,J75=Data!$B$7,Data!$H$6,J75=Data!$B$8,Data!$H$19)) ->  | Q75: =IF(I75="","",IF(I75='ARRS Summary'!B$30,L75/2,K75)/12*N75) -> 
J76: =IF(I76="","",IF(I76='ARRS Summary'!$B$30,"Enter A4C band here","No Entry Required")) ->  | K76: =VLOOKUP(I76,Data!F$4:H$21,3,FALSE) ->  | L76: =IF(I76<>'ARRS Summary'!B$30,"",_xlfn.IFS(J76=Data!$B$4,Data!$H$11,J76=Data!$B$5,Data!$H$5,J76=Data!$B$6,Data!$H$21,J76=Data!$B$7,Data!$H$6,J76=Data!$B$8,Data!$H$19)) ->  | Q76: =IF(I76="","",IF(I76='ARRS Summary'!B$30,L76/2,K76)/12*N76) -> 
J77: =IF(I77="","",IF(I77='ARRS Summary'!$B$30,"Enter A4C band here","No Entry Required")) ->  | K77: =VLOOKUP(I77,Data!F$4:H$21,3,FALSE) ->  | L77: =IF(I77<>'ARRS Summary'!B$30,"",_xlfn.IFS(J77=Data!$B$4,Data!$H$11,J77=Data!$B$5,Data!$H$5,J77=Data!$B$6,Data!$H$21,J77=Data!$B$7,Data!$H$6,J77=Data!$B$8,Data!$H$19)) ->  | Q77: =IF(I77="","",IF(I77='ARRS Summary'!B$30,L77/2,K77)/12*N77) -> 
J78: =IF(I78="","",IF(I78='ARRS Summary'!$B$30,"Enter A4C band here","No Entry Required")) ->  | K78: =VLOOKUP(I78,Data!F$4:H$21,3,FALSE) ->  | L78: =IF(I78<>'ARRS Summary'!B$30,"",_xlfn.IFS(J78=Data!$B$4,Data!$H$11,J78=Data!$B$5,Data!$H$5,J78=Data!$B$6,Data!$H$21,J78=Data!$B$7,Data!$H$6,J78=Data!$B$8,Data!$H$19)) ->  | Q78: =IF(I78="","",IF(I78='ARRS Summary'!B$30,L78/2,K78)/12*N78) -> 
J79: =IF(I79="","",IF(I79='ARRS Summary'!$B$30,"Enter A4C band here","No Entry Required")) ->  | K79: =VLOOKUP(I79,Data!F$4:H$21,3,FALSE) ->  | L79: =IF(I79<>'ARRS Summary'!B$30,"",_xlfn.IFS(J79=Data!$B$4,Data!$H$11,J79=Data!$B$5,Data!$H$5,J79=Data!$B$6,Data!$H$21,J79=Data!$B$7,Data!$H$6,J79=Data!$B$8,Data!$H$19)) ->  | Q79: =IF(I79="","",IF(I79='ARRS Summary'!B$30,L79/2,K79)/12*N79) -> 
J80: =IF(I80="","",IF(I80='ARRS Summary'!$B$30,"Enter A4C band here","No Entry Required")) ->  | K80: =VLOOKUP(I80,Data!F$4:H$21,3,FALSE) ->  | L80: =IF(I80<>'ARRS Summary'!B$30,"",_xlfn.IFS(J80=Data!$B$4,Data!$H$11,J80=Data!$B$5,Data!$H$5,J80=Data!$B$6,Data!$H$21,J80=Data!$B$7,Data!$H$6,J80=Data!$B$8,Data!$H$19)) ->  | Q80: =IF(I80="","",IF(I80='ARRS Summary'!B$30,L80/2,K80)/12*N80) -> 
J81: =IF(I81="","",IF(I81='ARRS Summary'!$B$30,"Enter A4C band here","No Entry Required")) ->  | K81: =VLOOKUP(I81,Data!F$4:H$21,3,FALSE) ->  | L81: =IF(I81<>'ARRS Summary'!B$30,"",_xlfn.IFS(J81=Data!$B$4,Data!$H$11,J81=Data!$B$5,Data!$H$5,J81=Data!$B$6,Data!$H$21,J81=Data!$B$7,Data!$H$6,J81=Data!$B$8,Data!$H$19)) ->  | Q81: =IF(I81="","",IF(I81='ARRS Summary'!B$30,L81/2,K81)/12*N81) -> 
J82: =IF(I82="","",IF(I82='ARRS Summary'!$B$30,"Enter A4C band here","No Entry Required")) ->  | K82: =VLOOKUP(I82,Data!F$4:H$21,3,FALSE) ->  | L82: =IF(I82<>'ARRS Summary'!B$30,"",_xlfn.IFS(J82=Data!$B$4,Data!$H$11,J82=Data!$B$5,Data!$H$5,J82=Data!$B$6,Data!$H$21,J82=Data!$B$7,Data!$H$6,J82=Data!$B$8,Data!$H$19)) ->  | Q82: =IF(I82="","",IF(I82='ARRS Summary'!B$30,L82/2,K82)/12*N82) -> 
J83: =IF(I83="","",IF(I83='ARRS Summary'!$B$30,"Enter A4C band here","No Entry Required")) ->  | K83: =VLOOKUP(I83,Data!F$4:H$21,3,FALSE) ->  | L83: =IF(I83<>'ARRS Summary'!B$30,"",_xlfn.IFS(J83=Data!$B$4,Data!$H$11,J83=Data!$B$5,Data!$H$5,J83=Data!$B$6,Data!$H$21,J83=Data!$B$7,Data!$H$6,J83=Data!$B$8,Data!$H$19)) ->  | Q83: =IF(I83="","",IF(I83='ARRS Summary'!B$30,L83/2,K83)/12*N83) -> 
J84: =IF(I84="","",IF(I84='ARRS Summary'!$B$30,"Enter A4C band here","No Entry Required")) ->  | K84: =VLOOKUP(I84,Data!F$4:H$21,3,FALSE) ->  | L84: =IF(I84<>'ARRS Summary'!B$30,"",_xlfn.IFS(J84=Data!$B$4,Data!$H$11,J84=Data!$B$5,Data!$H$5,J84=Data!$B$6,Data!$H$21,J84=Data!$B$7,Data!$H$6,J84=Data!$B$8,Data!$H$19)) ->  | Q84: =IF(I84="","",IF(I84='ARRS Summary'!B$30,L84/2,K84)/12*N84) ->  | CC84: =IF(I84="","",SUM(CA84,CB84)) -> 
J85: =IF(I85="","",IF(I85='ARRS Summary'!$B$30,"Enter A4C band here","No Entry Required")) ->  | K85: =VLOOKUP(I85,Data!F$4:H$21,3,FALSE) ->  | L85: =IF(I85<>'ARRS Summary'!B$30,"",_xlfn.IFS(J85=Data!$B$4,Data!$H$11,J85=Data!$B$5,Data!$H$5,J85=Data!$B$6,Data!$H$21,J85=Data!$B$7,Data!$H$6,J85=Data!$B$8,Data!$H$19)) ->  | Q85: =IF(I85="","",IF(I85='ARRS Summary'!B$30,L85/2,K85)/12*N85) -> 
J86: =IF(I86="","",IF(I86='ARRS Summary'!$B$30,"Enter A4C band here","No Entry Required")) ->  | K86: =VLOOKUP(I86,Data!F$4:H$21,3,FALSE) ->  | L86: =IF(I86<>'ARRS Summary'!B$30,"",_xlfn.IFS(J86=Data!$B$4,Data!$H$11,J86=Data!$B$5,Data!$H$5,J86=Data!$B$6,Data!$H$21,J86=Data!$B$7,Data!$H$6,J86=Data!$B$8,Data!$H$19)) ->  | Q86: =IF(I86="","",IF(I86='ARRS Summary'!B$30,L86/2,K86)/12*N86) -> 
J87: =IF(I87="","",IF(I87='ARRS Summary'!$B$30,"Enter A4C band here","No Entry Required")) ->  | K87: =VLOOKUP(I87,Data!F$4:H$21,3,FALSE) ->  | L87: =IF(I87<>'ARRS Summary'!B$30,"",_xlfn.IFS(J87=Data!$B$4,Data!$H$11,J87=Data!$B$5,Data!$H$5,J87=Data!$B$6,Data!$H$21,J87=Data!$B$7,Data!$H$6,J87=Data!$B$8,Data!$H$19)) ->  | Q87: =IF(I87="","",IF(I87='ARRS Summary'!B$30,L87/2,K87)/12*N87) -> 
J88: =IF(I88="","",IF(I88='ARRS Summary'!$B$30,"Enter A4C band here","No Entry Required")) ->  | K88: =VLOOKUP(I88,Data!F$4:H$21,3,FALSE) ->  | L88: =IF(I88<>'ARRS Summary'!B$30,"",_xlfn.IFS(J88=Data!$B$4,Data!$H$11,J88=Data!$B$5,Data!$H$5,J88=Data!$B$6,Data!$H$21,J88=Data!$B$7,Data!$H$6,J88=Data!$B$8,Data!$H$19)) ->  | Q88: =IF(I88="","",IF(I88='ARRS Summary'!B$30,L88/2,K88)/12*N88) -> 
J89: =IF(I89="","",IF(I89='ARRS Summary'!$B$30,"Enter A4C band here","No Entry Required")) ->  | K89: =VLOOKUP(I89,Data!F$4:H$21,3,FALSE) ->  | L89: =IF(I89<>'ARRS Summary'!B$30,"",_xlfn.IFS(J89=Data!$B$4,Data!$H$11,J89=Data!$B$5,Data!$H$5,J89=Data!$B$6,Data!$H$21,J89=Data!$B$7,Data!$H$6,J89=Data!$B$8,Data!$H$19)) ->  | Q89: =IF(I89="","",IF(I89='ARRS Summary'!B$30,L89/2,K89)/12*N89) -> 
J90: =IF(I90="","",IF(I90='ARRS Summary'!$B$30,"Enter A4C band here","No Entry Required")) ->  | K90: =VLOOKUP(I90,Data!F$4:H$21,3,FALSE) ->  | L90: =IF(I90<>'ARRS Summary'!B$30,"",_xlfn.IFS(J90=Data!$B$4,Data!$H$11,J90=Data!$B$5,Data!$H$5,J90=Data!$B$6,Data!$H$21,J90=Data!$B$7,Data!$H$6,J90=Data!$B$8,Data!$H$19)) ->  | Q90: =IF(I90="","",IF(I90='ARRS Summary'!B$30,L90/2,K90)/12*N90) -> 
J91: =IF(I91="","",IF(I91='ARRS Summary'!$B$30,"Enter A4C band here","No Entry Required")) ->  | K91: =VLOOKUP(I91,Data!F$4:H$21,3,FALSE) ->  | L91: =IF(I91<>'ARRS Summary'!B$30,"",_xlfn.IFS(J91=Data!$B$4,Data!$H$11,J91=Data!$B$5,Data!$H$5,J91=Data!$B$6,Data!$H$21,J91=Data!$B$7,Data!$H$6,J91=Data!$B$8,Data!$H$19)) ->  | Q91: =IF(I91="","",IF(I91='ARRS Summary'!B$30,L91/2,K91)/12*N91) ->  | AC91: =IF(AB91="","",IF(AB91<$Q91,0,AB91-AF91)) -> 
J92: =IF(I92="","",IF(I92='ARRS Summary'!$B$30,"Enter A4C band here","No Entry Required")) ->  | K92: =VLOOKUP(I92,Data!F$4:H$21,3,FALSE) ->  | L92: =IF(I92<>'ARRS Summary'!B$30,"",_xlfn.IFS(J92=Data!$B$4,Data!$H$11,J92=Data!$B$5,Data!$H$5,J92=Data!$B$6,Data!$H$21,J92=Data!$B$7,Data!$H$6,J92=Data!$B$8,Data!$H$19)) ->  | Q92: =IF(I92="","",IF(I92='ARRS Summary'!B$30,L92/2,K92)/12*N92) -> 
J93: =IF(I93="","",IF(I93='ARRS Summary'!$B$30,"Enter A4C band here","No Entry Required")) ->  | K93: =VLOOKUP(I93,Data!F$4:H$21,3,FALSE) ->  | L93: =IF(I93<>'ARRS Summary'!B$30,"",_xlfn.IFS(J93=Data!$B$4,Data!$H$11,J93=Data!$B$5,Data!$H$5,J93=Data!$B$6,Data!$H$21,J93=Data!$B$7,Data!$H$6,J93=Data!$B$8,Data!$H$19)) ->  | Q93: =IF(I93="","",IF(I93='ARRS Summary'!B$30,L93/2,K93)/12*N93) -> 
J94: =IF(I94="","",IF(I94='ARRS Summary'!$B$30,"Enter A4C band here","No Entry Required")) ->  | K94: =VLOOKUP(I94,Data!F$4:H$21,3,FALSE) ->  | L94: =IF(I94<>'ARRS Summary'!B$30,"",_xlfn.IFS(J94=Data!$B$4,Data!$H$11,J94=Data!$B$5,Data!$H$5,J94=Data!$B$6,Data!$H$21,J94=Data!$B$7,Data!$H$6,J94=Data!$B$8,Data!$H$19)) ->  | Q94: =IF(I94="","",IF(I94='ARRS Summary'!B$30,L94/2,K94)/12*N94) -> 
J95: =IF(I95="","",IF(I95='ARRS Summary'!$B$30,"Enter A4C band here","No Entry Required")) ->  | K95: =VLOOKUP(I95,Data!F$4:H$21,3,FALSE) ->  | L95: =IF(I95<>'ARRS Summary'!B$30,"",_xlfn.IFS(J95=Data!$B$4,Data!$H$11,J95=Data!$B$5,Data!$H$5,J95=Data!$B$6,Data!$H$21,J95=Data!$B$7,Data!$H$6,J95=Data!$B$8,Data!$H$19)) ->  | Q95: =IF(I95="","",IF(I95='ARRS Summary'!B$30,L95/2,K95)/12*N95) -> 
J96: =IF(I96="","",IF(I96='ARRS Summary'!$B$30,"Enter A4C band here","No Entry Required")) ->  | K96: =VLOOKUP(I96,Data!F$4:H$21,3,FALSE) ->  | L96: =IF(I96<>'ARRS Summary'!B$30,"",_xlfn.IFS(J96=Data!$B$4,Data!$H$11,J96=Data!$B$5,Data!$H$5,J96=Data!$B$6,Data!$H$21,J96=Data!$B$7,Data!$H$6,J96=Data!$B$8,Data!$H$19)) ->  | Q96: =IF(I96="","",IF(I96='ARRS Summary'!B$30,L96/2,K96)/12*N96) -> 
J97: =IF(I97="","",IF(I97='ARRS Summary'!$B$30,"Enter A4C band here","No Entry Required")) ->  | K97: =VLOOKUP(I97,Data!F$4:H$21,3,FALSE) ->  | L97: =IF(I97<>'ARRS Summary'!B$30,"",_xlfn.IFS(J97=Data!$B$4,Data!$H$11,J97=Data!$B$5,Data!$H$5,J97=Data!$B$6,Data!$H$21,J97=Data!$B$7,Data!$H$6,J97=Data!$B$8,Data!$H$19)) ->  | Q97: =IF(I97="","",IF(I97='ARRS Summary'!B$30,L97/2,K97)/12*N97) -> 
J98: =IF(I98="","",IF(I98='ARRS Summary'!$B$30,"Enter A4C band here","No Entry Required")) ->  | K98: =VLOOKUP(I98,Data!F$4:H$21,3,FALSE) ->  | L98: =IF(I98<>'ARRS Summary'!B$30,"",_xlfn.IFS(J98=Data!$B$4,Data!$H$11,J98=Data!$B$5,Data!$H$5,J98=Data!$B$6,Data!$H$21,J98=Data!$B$7,Data!$H$6,J98=Data!$B$8,Data!$H$19)) ->  | Q98: =IF(I98="","",IF(I98='ARRS Summary'!B$30,L98/2,K98)/12*N98) -> 
J99: =IF(I99="","",IF(I99='ARRS Summary'!$B$30,"Enter A4C band here","No Entry Required")) ->  | K99: =VLOOKUP(I99,Data!F$4:H$21,3,FALSE) ->  | L99: =IF(I99<>'ARRS Summary'!B$30,"",_xlfn.IFS(J99=Data!$B$4,Data!$H$11,J99=Data!$B$5,Data!$H$5,J99=Data!$B$6,Data!$H$21,J99=Data!$B$7,Data!$H$6,J99=Data!$B$8,Data!$H$19)) ->  | Q99: =IF(I99="","",IF(I99='ARRS Summary'!B$30,L99/2,K99)/12*N99) -> 
J100: =IF(I100="","",IF(I100='ARRS Summary'!$B$30,"Enter A4C band here","No Entry Required")) ->  | K100: =VLOOKUP(I100,Data!F$4:H$21,3,FALSE) ->  | L100: =IF(I100<>'ARRS Summary'!B$30,"",_xlfn.IFS(J100=Data!$B$4,Data!$H$11,J100=Data!$B$5,Data!$H$5,J100=Data!$B$6,Data!$H$21,J100=Data!$B$7,Data!$H$6,J100=Data!$B$8,Data!$H$19)) ->  | Q100: =IF(I100="","",IF(I100='ARRS Summary'!B$30,L100/2,K100)/12*N100) -> 
J101: =IF(I101="","",IF(I101='ARRS Summary'!$B$30,"Enter A4C band here","No Entry Required")) ->  | K101: =VLOOKUP(I101,Data!F$4:H$21,3,FALSE) ->  | L101: =IF(I101<>'ARRS Summary'!B$30,"",_xlfn.IFS(J101=Data!$B$4,Data!$H$11,J101=Data!$B$5,Data!$H$5,J101=Data!$B$6,Data!$H$21,J101=Data!$B$7,Data!$H$6,J101=Data!$B$8,Data!$H$19)) ->  | Q101: =IF(I101="","",IF(I101='ARRS Summary'!B$30,L101/2,K101)/12*N101) ->  | S101: =IF(R101="","",IF(R101<V101,0,R101-V101)) ->  | X101: =IF(W101="","",IF(W101<AA101,0,W101-AA101)) ->  | AC101: =IF(AB101="","",IF(AB101<$Q101,0,AB101-AF101)) ->  | AH101: =IF(AG101="","",IF(AG101<AK101,0,AG101-AK101)) ->  | AM101: =IF(AL101="","",IF(AL101<AP101,0,AL101-AP101)) ->  | AR101: =IF(AQ101="","",IF(AQ101<AU101,0,AQ101-AU101)) ->  | AW101: =IF(AV101="","",IF(AV101<AZ101,0,AV101-AZ101)) ->  | BB101: =IF(BA101="","",IF(BA101<BE101,0,BA101-BE101)) ->  | BG101: =IF(BF101="","",IF(BF101<BJ101,0,BF101-BJ101)) ->  | BL101: =IF(BK101="","",IF(BK101<BO101,0,BK101-BO101)) ->  | BQ101: =IF(BP101="","",IF(BP101<BT101,0,BP101-BT101)) ->  | BV101: =IF(BU101="","",IF(BU101<BY101,0,BU101-BY101)) ->  | CA101: =IF(I101="","",SUM(S101,X101,AC101,AH101,AM101,AR101,AW101,BB101,BG101,BL101,BQ101,BV101)) ->  | CB101: =IF(I101="","",SUM(T101,Y101,AD101,AI101,AN101,AS101,AX101,BC101,BH101,BM101,BR101,BW101)) ->  | CC101: =IF(I101="","",SUM(CA101,CB101)) -> 
J102: =IF(I102="","",IF(I102='ARRS Summary'!$B$30,"Enter A4C band here","No Entry Required")) ->  | K102: =VLOOKUP(I102,Data!F$4:H$21,3,FALSE) ->  | L102: =IF(I102<>'ARRS Summary'!B$30,"",_xlfn.IFS(J102=Data!$B$4,Data!$H$11,J102=Data!$B$5,Data!$H$5,J102=Data!$B$6,Data!$H$21,J102=Data!$B$7,Data!$H$6,J102=Data!$B$8,Data!$H$19)) ->  | Q102: =IF(I102="","",IF(I102='ARRS Summary'!B$30,L102/2,K102)/12*N102) -> 
J103: =IF(I103="","",IF(I103='ARRS Summary'!$B$30,"Enter A4C band here","No Entry Required")) ->  | K103: =VLOOKUP(I103,Data!F$4:H$21,3,FALSE) ->  | L103: =IF(I103<>'ARRS Summary'!B$30,"",_xlfn.IFS(J103=Data!$B$4,Data!$H$11,J103=Data!$B$5,Data!$H$5,J103=Data!$B$6,Data!$H$21,J103=Data!$B$7,Data!$H$6,J103=Data!$B$8,Data!$H$19)) ->  | Q103: =IF(I103="","",IF(I103='ARRS Summary'!B$30,L103/2,K103)/12*N103) -> 
J104: =IF(I104="","",IF(I104='ARRS Summary'!$B$30,"Enter A4C band here","No Entry Required")) ->  | K104: =VLOOKUP(I104,Data!F$4:H$21,3,FALSE) ->  | L104: =IF(I104<>'ARRS Summary'!B$30,"",_xlfn.IFS(J104=Data!$B$4,Data!$H$11,J104=Data!$B$5,Data!$H$5,J104=Data!$B$6,Data!$H$21,J104=Data!$B$7,Data!$H$6,J104=Data!$B$8,Data!$H$19)) ->  | Q104: =IF(I104="","",IF(I104='ARRS Summary'!B$30,L104/2,K104)/12*N104) -> 
J105: =IF(I105="","",IF(I105='ARRS Summary'!$B$30,"Enter A4C band here","No Entry Required")) ->  | K105: =VLOOKUP(I105,Data!F$4:H$21,3,FALSE) ->  | L105: =IF(I105<>'ARRS Summary'!B$30,"",_xlfn.IFS(J105=Data!$B$4,Data!$H$11,J105=Data!$B$5,Data!$H$5,J105=Data!$B$6,Data!$H$21,J105=Data!$B$7,Data!$H$6,J105=Data!$B$8,Data!$H$19)) ->  | Q105: =IF(I105="","",IF(I105='ARRS Summary'!B$30,L105/2,K105)/12*N105) ->  | AT105: =IF(AQ105="","",MIN(AQ105,$Q105)) ->  | AU105: =IF(AQ105="","","Please enter to match portal") -> 

Sheet PCN NonARRS (hidden)
B1: Non-ARR Staff (optional) | M1: TOTALS | N1: =SUM(N4:N106) -> 0 | O1: =SUM(O4:O106) -> 0 | P1: 0 | Q1: 0 | R1: 0 | S1: 0 | T1: 0 | U1: 0 | V1: 0 | W1: 0 | X1: 0 | Y1: 0 | Z1: 0 | AA1: 0 | AB1: 0 | AC1: 0 | AD1: 0 | AE1: 0 | AF1: 0 | AG1: 0 | AH1: 0 | AI1: 0 | AJ1: 0 | AK1: 0 | AL1: 0 | AM1: 0 | AN1: 0 | AO1: 0 | AP1: 0 | AQ1: 0 | AR1: 0 | AS1: 0 | AT1: 0 | AU1: 0 | AV1: 0 | AW1: 0
K2: Calculated | M2: Enter when left | P2: Calculated | S2: Calculated | V2: Calculated | Y2: Calculated | AB2: Calculated | AE2: Calculated | AH2: Calculated | AK2: Calculated | AN2: Calculated | AQ2: Calculated | AT2: Calculated | AW2: Calculated
N3: April | Q3: May | T3: June | W3: July | Z3: August | AC3: September | AF3: October | AI3: November | AL3: December | AO3: January | AR3: February | AU3: March | AX3: Annual Total
B4: Name | C4: Employer | D4: Role | E4: Appraisal Date 23/24 | F4: Line Manager / Supervisor | G4: Funding Stream | H4: Non MH salary | I4: MH salary | J4: Hours/week | K4: WTE | L4: PCN Start Date | M4: PCN End Date | N4: Total Salary Costs | O4: Other Costs | P4: Total Month | Q4: Total Salary Costs | R4: Other Costs | S4: Total Month | T4: Total Salary Costs | U4: Other Costs | V4: Total Month | W4: Total Salary Costs | X4: Other Costs | Y4: Total Month | Z4: Total Salary Costs | AA4: Other Costs | AB4: Total Month | AC4: Total Salary Costs | AD4: Other Costs | AE4: Total Month | AF4: Total Salary Costs | AG4: Other Costs | AH4: Total Month | AI4: Total Salary Costs | AJ4: Other Costs | AK4: Total Month | AL4: Total Salary Costs | AM4: Other Costs | AN4: Total Month | AO4: Total Salary Costs | AP4: Other Costs | AQ4: Total Month | AR4: Total Salary Costs | AS4: Other Costs | AT4: Total Month | AU4: Total Salary Costs | AV4: Other Costs | AW4: Total Month
K5: =IF(J5="","",J5/37.5) ->  | P5: =IF(N5="","",SUM(N5:O5)) ->  | S5: =IF(Q5="","",SUM(Q5:R5)) ->  | V5: =IF(T5="","",SUM(T5:U5)) ->  | Y5: =IF(W5="","",SUM(W5:X5)) ->  | AB5: =IF(Z5="","",SUM(Z5:AA5)) ->  | AE5: =IF(AC5="","",SUM(AC5:AD5)) ->  | AH5: =IF(AF5="","",SUM(AF5:AG5)) ->  | AK5: =IF(AI5="","",SUM(AI5:AJ5)) ->  | AN5: =IF(AL5="","",SUM(AL5:AM5)) ->  | AQ5: =IF(AO5="","",SUM(AO5:AP5)) ->  | AT5: =IF(AR5="","",SUM(AR5:AS5)) ->  | AW5: =IF(AU5="","",SUM(AU5:AV5)) ->  | AX5: =IF(AW5="","",SUM(AW5,AT5,AQ5,AN5,AK5,AH5,AE5,AB5,Y5,V5,S5,P5)) -> 
AX6: =IF(AW6="","",SUM(AW6,AT6,AQ6,AN6,AK6,AH6,AE6,AB6,Y6,V6,S6,P6)) -> 
H19: =VLOOKUP(D19,Data!F$4:H$21,5,FALSE) ->  | I19: =IF(D19<>'ARRS Summary'!B$30,"",IF(D19='ARRS Summary'!B$30,IF(G19=Data!B$5,Data!#REF!,IF(G19=Data!B$6,Data!#REF!,IF(G19=Data!B$7,Data!#REF!,IF(G19=Data!B$8,Data!#REF!,"")))))) -> 
H20: =VLOOKUP(D20,Data!F$4:H$21,5,FALSE) ->  | I20: =IF(D20<>'ARRS Summary'!B$30,"",IF(D20='ARRS Summary'!B$30,IF(G20=Data!B$5,Data!#REF!,IF(G20=Data!B$6,Data!#REF!,IF(G20=Data!B$7,Data!#REF!,IF(G20=Data!B$8,Data!#REF!,"")))))) -> 
H21: =VLOOKUP(D21,Data!F$4:H$21,5,FALSE) ->  | I21: =IF(D21<>'ARRS Summary'!B$30,"",IF(D21='ARRS Summary'!B$30,IF(G21=Data!B$5,Data!#REF!,IF(G21=Data!B$6,Data!#REF!,IF(G21=Data!B$7,Data!#REF!,IF(G21=Data!B$8,Data!#REF!,"")))))) -> 
H22: =VLOOKUP(D22,Data!F$4:H$21,5,FALSE) ->  | I22: =IF(D22<>'ARRS Summary'!B$30,"",IF(D22='ARRS Summary'!B$30,IF(G22=Data!B$5,Data!#REF!,IF(G22=Data!B$6,Data!#REF!,IF(G22=Data!B$7,Data!#REF!,IF(G22=Data!B$8,Data!#REF!,"")))))) -> 
H23: =VLOOKUP(D23,Data!F$4:H$21,5,FALSE) ->  | I23: =IF(D23<>'ARRS Summary'!B$30,"",IF(D23='ARRS Summary'!B$30,IF(G23=Data!B$5,Data!#REF!,IF(G23=Data!B$6,Data!#REF!,IF(G23=Data!B$7,Data!#REF!,IF(G23=Data!B$8,Data!#REF!,"")))))) -> 
H24: =VLOOKUP(D24,Data!F$4:H$21,5,FALSE) ->  | I24: =IF(D24<>'ARRS Summary'!B$30,"",IF(D24='ARRS Summary'!B$30,IF(G24=Data!B$5,Data!#REF!,IF(G24=Data!B$6,Data!#REF!,IF(G24=Data!B$7,Data!#REF!,IF(G24=Data!B$8,Data!#REF!,"")))))) -> 
H25: =VLOOKUP(D25,Data!F$4:H$21,5,FALSE) ->  | I25: =IF(D25<>'ARRS Summary'!B$30,"",IF(D25='ARRS Summary'!B$30,IF(G25=Data!B$5,Data!#REF!,IF(G25=Data!B$6,Data!#REF!,IF(G25=Data!B$7,Data!#REF!,IF(G25=Data!B$8,Data!#REF!,"")))))) -> 
H26: =VLOOKUP(D26,Data!F$4:H$21,5,FALSE) ->  | I26: =IF(D26<>'ARRS Summary'!B$30,"",IF(D26='ARRS Summary'!B$30,IF(G26=Data!B$5,Data!#REF!,IF(G26=Data!B$6,Data!#REF!,IF(G26=Data!B$7,Data!#REF!,IF(G26=Data!B$8,Data!#REF!,"")))))) -> 
H27: =VLOOKUP(D27,Data!F$4:H$21,5,FALSE) ->  | I27: =IF(D27<>'ARRS Summary'!B$30,"",IF(D27='ARRS Summary'!B$30,IF(G27=Data!B$5,Data!#REF!,IF(G27=Data!B$6,Data!#REF!,IF(G27=Data!B$7,Data!#REF!,IF(G27=Data!B$8,Data!#REF!,"")))))) -> 
H28: =VLOOKUP(D28,Data!F$4:H$21,5,FALSE) ->  | I28: =IF(D28<>'ARRS Summary'!B$30,"",IF(D28='ARRS Summary'!B$30,IF(G28=Data!B$5,Data!#REF!,IF(G28=Data!B$6,Data!#REF!,IF(G28=Data!B$7,Data!#REF!,IF(G28=Data!B$8,Data!#REF!,"")))))) -> 
H29: =VLOOKUP(D29,Data!F$4:H$21,5,FALSE) ->  | I29: =IF(D29<>'ARRS Summary'!B$30,"",IF(D29='ARRS Summary'!B$30,IF(G29=Data!B$5,Data!#REF!,IF(G29=Data!B$6,Data!#REF!,IF(G29=Data!B$7,Data!#REF!,IF(G29=Data!B$8,Data!#REF!,"")))))) -> 
H30: =VLOOKUP(D30,Data!F$4:H$21,5,FALSE) ->  | I30: =IF(D30<>'ARRS Summary'!B$30,"",IF(D30='ARRS Summary'!B$30,IF(G30=Data!B$5,Data!#REF!,IF(G30=Data!B$6,Data!#REF!,IF(G30=Data!B$7,Data!#REF!,IF(G30=Data!B$8,Data!#REF!,"")))))) -> 
H31: =VLOOKUP(D31,Data!F$4:H$21,5,FALSE) ->  | I31: =IF(D31<>'ARRS Summary'!B$30,"",IF(D31='ARRS Summary'!B$30,IF(G31=Data!B$5,Data!#REF!,IF(G31=Data!B$6,Data!#REF!,IF(G31=Data!B$7,Data!#REF!,IF(G31=Data!B$8,Data!#REF!,"")))))) -> 
H32: =VLOOKUP(D32,Data!F$4:H$21,5,FALSE) ->  | I32: =IF(D32<>'ARRS Summary'!B$30,"",IF(D32='ARRS Summary'!B$30,IF(G32=Data!B$5,Data!#REF!,IF(G32=Data!B$6,Data!#REF!,IF(G32=Data!B$7,Data!#REF!,IF(G32=Data!B$8,Data!#REF!,"")))))) -> 
H33: =VLOOKUP(D33,Data!F$4:H$21,5,FALSE) ->  | I33: =IF(D33<>'ARRS Summary'!B$30,"",IF(D33='ARRS Summary'!B$30,IF(G33=Data!B$5,Data!#REF!,IF(G33=Data!B$6,Data!#REF!,IF(G33=Data!B$7,Data!#REF!,IF(G33=Data!B$8,Data!#REF!,"")))))) -> 
H34: =VLOOKUP(D34,Data!F$4:H$21,5,FALSE) ->  | I34: =IF(D34<>'ARRS Summary'!B$30,"",IF(D34='ARRS Summary'!B$30,IF(G34=Data!B$5,Data!#REF!,IF(G34=Data!B$6,Data!#REF!,IF(G34=Data!B$7,Data!#REF!,IF(G34=Data!B$8,Data!#REF!,"")))))) -> 
H35: =VLOOKUP(D35,Data!F$4:H$21,5,FALSE) ->  | I35: =IF(D35<>'ARRS Summary'!B$30,"",IF(D35='ARRS Summary'!B$30,IF(G35=Data!B$5,Data!#REF!,IF(G35=Data!B$6,Data!#REF!,IF(G35=Data!B$7,Data!#REF!,IF(G35=Data!B$8,Data!#REF!,"")))))) -> 
H36: =VLOOKUP(D36,Data!F$4:H$21,5,FALSE) ->  | I36: =IF(D36<>'ARRS Summary'!B$30,"",IF(D36='ARRS Summary'!B$30,IF(G36=Data!B$5,Data!#REF!,IF(G36=Data!B$6,Data!#REF!,IF(G36=Data!B$7,Data!#REF!,IF(G36=Data!B$8,Data!#REF!,"")))))) -> 
H37: =VLOOKUP(D37,Data!F$4:H$21,5,FALSE) ->  | I37: =IF(D37<>'ARRS Summary'!B$30,"",IF(D37='ARRS Summary'!B$30,IF(G37=Data!B$5,Data!#REF!,IF(G37=Data!B$6,Data!#REF!,IF(G37=Data!B$7,Data!#REF!,IF(G37=Data!B$8,Data!#REF!,"")))))) ->  | K37: =IF(J37="","",J37/37.5) ->  | P37: =IF(N37="","",SUM(N37:O37)) ->  | S37: =IF(Q37="","",SUM(Q37:R37)) ->  | V37: =IF(T37="","",SUM(T37:U37)) ->  | Y37: =IF(W37="","",SUM(W37:X37)) ->  | AB37: =IF(Z37="","",SUM(Z37:AA37)) ->  | AE37: =IF(AC37="","",SUM(AC37:AD37)) ->  | AH37: =IF(AF37="","",SUM(AF37:AG37)) ->  | AK37: =IF(AI37="","",SUM(AI37:AJ37)) ->  | AN37: =IF(AL37="","",SUM(AL37:AM37)) ->  | AQ37: =IF(AO37="","",SUM(AO37:AP37)) ->  | AT37: =IF(AR37="","",SUM(AR37:AS37)) ->  | AW37: =IF(AU37="","",SUM(AU37:AV37)) -> 
H38: =VLOOKUP(D38,Data!F$4:H$21,5,FALSE) ->  | I38: =IF(D38<>'ARRS Summary'!B$30,"",IF(D38='ARRS Summary'!B$30,IF(G38=Data!B$5,Data!#REF!,IF(G38=Data!B$6,Data!#REF!,IF(G38=Data!B$7,Data!#REF!,IF(G38=Data!B$8,Data!#REF!,"")))))) -> 
H39: =VLOOKUP(D39,Data!F$4:H$21,5,FALSE) ->  | I39: =IF(D39<>'ARRS Summary'!B$30,"",IF(D39='ARRS Summary'!B$30,IF(G39=Data!B$5,Data!#REF!,IF(G39=Data!B$6,Data!#REF!,IF(G39=Data!B$7,Data!#REF!,IF(G39=Data!B$8,Data!#REF!,"")))))) -> 
H40: =VLOOKUP(D40,Data!F$4:H$21,5,FALSE) ->  | I40: =IF(D40<>'ARRS Summary'!B$30,"",IF(D40='ARRS Summary'!B$30,IF(G40=Data!B$5,Data!#REF!,IF(G40=Data!B$6,Data!#REF!,IF(G40=Data!B$7,Data!#REF!,IF(G40=Data!B$8,Data!#REF!,"")))))) -> 
H41: =VLOOKUP(D41,Data!F$4:H$21,5,FALSE) ->  | I41: =IF(D41<>'ARRS Summary'!B$30,"",IF(D41='ARRS Summary'!B$30,IF(G41=Data!B$5,Data!#REF!,IF(G41=Data!B$6,Data!#REF!,IF(G41=Data!B$7,Data!#REF!,IF(G41=Data!B$8,Data!#REF!,"")))))) -> 
H42: =VLOOKUP(D42,Data!F$4:H$21,5,FALSE) ->  | I42: =IF(D42<>'ARRS Summary'!B$30,"",IF(D42='ARRS Summary'!B$30,IF(G42=Data!B$5,Data!#REF!,IF(G42=Data!B$6,Data!#REF!,IF(G42=Data!B$7,Data!#REF!,IF(G42=Data!B$8,Data!#REF!,"")))))) -> 
H43: =VLOOKUP(D43,Data!F$4:H$21,5,FALSE) ->  | I43: =IF(D43<>'ARRS Summary'!B$30,"",IF(D43='ARRS Summary'!B$30,IF(G43=Data!B$5,Data!#REF!,IF(G43=Data!B$6,Data!#REF!,IF(G43=Data!B$7,Data!#REF!,IF(G43=Data!B$8,Data!#REF!,"")))))) -> 
H44: =VLOOKUP(D44,Data!F$4:H$21,5,FALSE) ->  | I44: =IF(D44<>'ARRS Summary'!B$30,"",IF(D44='ARRS Summary'!B$30,IF(G44=Data!B$5,Data!#REF!,IF(G44=Data!B$6,Data!#REF!,IF(G44=Data!B$7,Data!#REF!,IF(G44=Data!B$8,Data!#REF!,"")))))) -> 
H45: =VLOOKUP(D45,Data!F$4:H$21,5,FALSE) ->  | I45: =IF(D45<>'ARRS Summary'!B$30,"",IF(D45='ARRS Summary'!B$30,IF(G45=Data!B$5,Data!#REF!,IF(G45=Data!B$6,Data!#REF!,IF(G45=Data!B$7,Data!#REF!,IF(G45=Data!B$8,Data!#REF!,"")))))) -> 
H46: =VLOOKUP(D46,Data!F$4:H$21,5,FALSE) ->  | I46: =IF(D46<>'ARRS Summary'!B$30,"",IF(D46='ARRS Summary'!B$30,IF(G46=Data!B$5,Data!#REF!,IF(G46=Data!B$6,Data!#REF!,IF(G46=Data!B$7,Data!#REF!,IF(G46=Data!B$8,Data!#REF!,"")))))) -> 
H47: =VLOOKUP(D47,Data!F$4:H$21,5,FALSE) ->  | I47: =IF(D47<>'ARRS Summary'!B$30,"",IF(D47='ARRS Summary'!B$30,IF(G47=Data!B$5,Data!#REF!,IF(G47=Data!B$6,Data!#REF!,IF(G47=Data!B$7,Data!#REF!,IF(G47=Data!B$8,Data!#REF!,"")))))) -> 
H48: =VLOOKUP(D48,Data!F$4:H$21,5,FALSE) ->  | I48: =IF(D48<>'ARRS Summary'!B$30,"",IF(D48='ARRS Summary'!B$30,IF(G48=Data!B$5,Data!#REF!,IF(G48=Data!B$6,Data!#REF!,IF(G48=Data!B$7,Data!#REF!,IF(G48=Data!B$8,Data!#REF!,"")))))) -> 
H49: =VLOOKUP(D49,Data!F$4:H$21,5,FALSE) ->  | I49: =IF(D49<>'ARRS Summary'!B$30,"",IF(D49='ARRS Summary'!B$30,IF(G49=Data!B$5,Data!#REF!,IF(G49=Data!B$6,Data!#REF!,IF(G49=Data!B$7,Data!#REF!,IF(G49=Data!B$8,Data!#REF!,"")))))) -> 
H50: =VLOOKUP(D50,Data!F$4:H$21,5,FALSE) ->  | I50: =IF(D50<>'ARRS Summary'!B$30,"",IF(D50='ARRS Summary'!B$30,IF(G50=Data!B$5,Data!#REF!,IF(G50=Data!B$6,Data!#REF!,IF(G50=Data!B$7,Data!#REF!,IF(G50=Data!B$8,Data!#REF!,"")))))) -> 
H51: =VLOOKUP(D51,Data!F$4:H$21,5,FALSE) ->  | I51: =IF(D51<>'ARRS Summary'!B$30,"",IF(D51='ARRS Summary'!B$30,IF(G51=Data!B$5,Data!#REF!,IF(G51=Data!B$6,Data!#REF!,IF(G51=Data!B$7,Data!#REF!,IF(G51=Data!B$8,Data!#REF!,"")))))) -> 
H52: =VLOOKUP(D52,Data!F$4:H$21,5,FALSE) ->  | I52: =IF(D52<>'ARRS Summary'!B$30,"",IF(D52='ARRS Summary'!B$30,IF(G52=Data!B$5,Data!#REF!,IF(G52=Data!B$6,Data!#REF!,IF(G52=Data!B$7,Data!#REF!,IF(G52=Data!B$8,Data!#REF!,"")))))) -> 
H53: =VLOOKUP(D53,Data!F$4:H$21,5,FALSE) ->  | I53: =IF(D53<>'ARRS Summary'!B$30,"",IF(D53='ARRS Summary'!B$30,IF(G53=Data!B$5,Data!#REF!,IF(G53=Data!B$6,Data!#REF!,IF(G53=Data!B$7,Data!#REF!,IF(G53=Data!B$8,Data!#REF!,"")))))) -> 
H54: =VLOOKUP(D54,Data!F$4:H$21,5,FALSE) ->  | I54: =IF(D54<>'ARRS Summary'!B$30,"",IF(D54='ARRS Summary'!B$30,IF(G54=Data!B$5,Data!#REF!,IF(G54=Data!B$6,Data!#REF!,IF(G54=Data!B$7,Data!#REF!,IF(G54=Data!B$8,Data!#REF!,"")))))) -> 
H55: =VLOOKUP(D55,Data!F$4:H$21,5,FALSE) ->  | I55: =IF(D55<>'ARRS Summary'!B$30,"",IF(D55='ARRS Summary'!B$30,IF(G55=Data!B$5,Data!#REF!,IF(G55=Data!B$6,Data!#REF!,IF(G55=Data!B$7,Data!#REF!,IF(G55=Data!B$8,Data!#REF!,"")))))) -> 
H56: =VLOOKUP(D56,Data!F$4:H$21,5,FALSE) ->  | I56: =IF(D56<>'ARRS Summary'!B$30,"",IF(D56='ARRS Summary'!B$30,IF(G56=Data!B$5,Data!#REF!,IF(G56=Data!B$6,Data!#REF!,IF(G56=Data!B$7,Data!#REF!,IF(G56=Data!B$8,Data!#REF!,"")))))) -> 
H57: =VLOOKUP(D57,Data!F$4:H$21,5,FALSE) ->  | I57: =IF(D57<>'ARRS Summary'!B$30,"",IF(D57='ARRS Summary'!B$30,IF(G57=Data!B$5,Data!#REF!,IF(G57=Data!B$6,Data!#REF!,IF(G57=Data!B$7,Data!#REF!,IF(G57=Data!B$8,Data!#REF!,"")))))) -> 
H58: =VLOOKUP(D58,Data!F$4:H$21,5,FALSE) ->  | I58: =IF(D58<>'ARRS Summary'!B$30,"",IF(D58='ARRS Summary'!B$30,IF(G58=Data!B$5,Data!#REF!,IF(G58=Data!B$6,Data!#REF!,IF(G58=Data!B$7,Data!#REF!,IF(G58=Data!B$8,Data!#REF!,"")))))) -> 
H59: =VLOOKUP(D59,Data!F$4:H$21,5,FALSE) ->  | I59: =IF(D59<>'ARRS Summary'!B$30,"",IF(D59='ARRS Summary'!B$30,IF(G59=Data!B$5,Data!#REF!,IF(G59=Data!B$6,Data!#REF!,IF(G59=Data!B$7,Data!#REF!,IF(G59=Data!B$8,Data!#REF!,"")))))) -> 
H60: =VLOOKUP(D60,Data!F$4:H$21,5,FALSE) ->  | I60: =IF(D60<>'ARRS Summary'!B$30,"",IF(D60='ARRS Summary'!B$30,IF(G60=Data!B$5,Data!#REF!,IF(G60=Data!B$6,Data!#REF!,IF(G60=Data!B$7,Data!#REF!,IF(G60=Data!B$8,Data!#REF!,"")))))) -> 
H61: =VLOOKUP(D61,Data!F$4:H$21,5,FALSE) ->  | I61: =IF(D61<>'ARRS Summary'!B$30,"",IF(D61='ARRS Summary'!B$30,IF(G61=Data!B$5,Data!#REF!,IF(G61=Data!B$6,Data!#REF!,IF(G61=Data!B$7,Data!#REF!,IF(G61=Data!B$8,Data!#REF!,"")))))) -> 
H62: =VLOOKUP(D62,Data!F$4:H$21,5,FALSE) ->  | I62: =IF(D62<>'ARRS Summary'!B$30,"",IF(D62='ARRS Summary'!B$30,IF(G62=Data!B$5,Data!#REF!,IF(G62=Data!B$6,Data!#REF!,IF(G62=Data!B$7,Data!#REF!,IF(G62=Data!B$8,Data!#REF!,"")))))) -> 
H63: =VLOOKUP(D63,Data!F$4:H$21,5,FALSE) ->  | I63: =IF(D63<>'ARRS Summary'!B$30,"",IF(D63='ARRS Summary'!B$30,IF(G63=Data!B$5,Data!#REF!,IF(G63=Data!B$6,Data!#REF!,IF(G63=Data!B$7,Data!#REF!,IF(G63=Data!B$8,Data!#REF!,"")))))) -> 
H64: =VLOOKUP(D64,Data!F$4:H$21,5,FALSE) ->  | I64: =IF(D64<>'ARRS Summary'!B$30,"",IF(D64='ARRS Summary'!B$30,IF(G64=Data!B$5,Data!#REF!,IF(G64=Data!B$6,Data!#REF!,IF(G64=Data!B$7,Data!#REF!,IF(G64=Data!B$8,Data!#REF!,"")))))) -> 
H65: =VLOOKUP(D65,Data!F$4:H$21,5,FALSE) ->  | I65: =IF(D65<>'ARRS Summary'!B$30,"",IF(D65='ARRS Summary'!B$30,IF(G65=Data!B$5,Data!#REF!,IF(G65=Data!B$6,Data!#REF!,IF(G65=Data!B$7,Data!#REF!,IF(G65=Data!B$8,Data!#REF!,"")))))) -> 
H66: =VLOOKUP(D66,Data!F$4:H$21,5,FALSE) ->  | I66: =IF(D66<>'ARRS Summary'!B$30,"",IF(D66='ARRS Summary'!B$30,IF(G66=Data!B$5,Data!#REF!,IF(G66=Data!B$6,Data!#REF!,IF(G66=Data!B$7,Data!#REF!,IF(G66=Data!B$8,Data!#REF!,"")))))) -> 
H67: =VLOOKUP(D67,Data!F$4:H$21,5,FALSE) ->  | I67: =IF(D67<>'ARRS Summary'!B$30,"",IF(D67='ARRS Summary'!B$30,IF(G67=Data!B$5,Data!#REF!,IF(G67=Data!B$6,Data!#REF!,IF(G67=Data!B$7,Data!#REF!,IF(G67=Data!B$8,Data!#REF!,"")))))) -> 
H68: =VLOOKUP(D68,Data!F$4:H$21,5,FALSE) ->  | I68: =IF(D68<>'ARRS Summary'!B$30,"",IF(D68='ARRS Summary'!B$30,IF(G68=Data!B$5,Data!#REF!,IF(G68=Data!B$6,Data!#REF!,IF(G68=Data!B$7,Data!#REF!,IF(G68=Data!B$8,Data!#REF!,"")))))) -> 
H69: =VLOOKUP(D69,Data!F$4:H$21,5,FALSE) ->  | I69: =IF(D69<>'ARRS Summary'!B$30,"",IF(D69='ARRS Summary'!B$30,IF(G69=Data!B$5,Data!#REF!,IF(G69=Data!B$6,Data!#REF!,IF(G69=Data!B$7,Data!#REF!,IF(G69=Data!B$8,Data!#REF!,"")))))) ->  | K69: =IF(J69="","",J69/37.5) ->  | P69: =IF(N69="","",SUM(N69:O69)) ->  | S69: =IF(Q69="","",SUM(Q69:R69)) ->  | V69: =IF(T69="","",SUM(T69:U69)) ->  | Y69: =IF(W69="","",SUM(W69:X69)) ->  | AB69: =IF(Z69="","",SUM(Z69:AA69)) ->  | AE69: =IF(AC69="","",SUM(AC69:AD69)) ->  | AH69: =IF(AF69="","",SUM(AF69:AG69)) ->  | AK69: =IF(AI69="","",SUM(AI69:AJ69)) ->  | AN69: =IF(AL69="","",SUM(AL69:AM69)) ->  | AQ69: =IF(AO69="","",SUM(AO69:AP69)) ->  | AT69: =IF(AR69="","",SUM(AR69:AS69)) ->  | AW69: =IF(AU69="","",SUM(AU69:AV69)) -> 
H70: =VLOOKUP(D70,Data!F$4:H$21,5,FALSE) ->  | I70: =IF(D70<>'ARRS Summary'!B$30,"",IF(D70='ARRS Summary'!B$30,IF(G70=Data!B$5,Data!#REF!,IF(G70=Data!B$6,Data!#REF!,IF(G70=Data!B$7,Data!#REF!,IF(G70=Data!B$8,Data!#REF!,"")))))) ->  | AX70: =IF(AW70="","",SUM(AW70,AT70,AQ70,AN70,AK70,AH70,AE70,AB70,Y70,V70,S70,P70)) -> 
H71: =VLOOKUP(D71,Data!F$4:H$21,5,FALSE) ->  | I71: =IF(D71<>'ARRS Summary'!B$30,"",IF(D71='ARRS Summary'!B$30,IF(G71=Data!B$5,Data!#REF!,IF(G71=Data!B$6,Data!#REF!,IF(G71=Data!B$7,Data!#REF!,IF(G71=Data!B$8,Data!#REF!,"")))))) -> 
H72: =VLOOKUP(D72,Data!F$4:H$21,5,FALSE) ->  | I72: =IF(D72<>'ARRS Summary'!B$30,"",IF(D72='ARRS Summary'!B$30,IF(G72=Data!B$5,Data!#REF!,IF(G72=Data!B$6,Data!#REF!,IF(G72=Data!B$7,Data!#REF!,IF(G72=Data!B$8,Data!#REF!,"")))))) -> 
H73: =VLOOKUP(D73,Data!F$4:H$21,5,FALSE) ->  | I73: =IF(D73<>'ARRS Summary'!B$30,"",IF(D73='ARRS Summary'!B$30,IF(G73=Data!B$5,Data!#REF!,IF(G73=Data!B$6,Data!#REF!,IF(G73=Data!B$7,Data!#REF!,IF(G73=Data!B$8,Data!#REF!,"")))))) -> 
H74: =VLOOKUP(D74,Data!F$4:H$21,5,FALSE) ->  | I74: =IF(D74<>'ARRS Summary'!B$30,"",IF(D74='ARRS Summary'!B$30,IF(G74=Data!B$5,Data!#REF!,IF(G74=Data!B$6,Data!#REF!,IF(G74=Data!B$7,Data!#REF!,IF(G74=Data!B$8,Data!#REF!,"")))))) -> 
H75: =VLOOKUP(D75,Data!F$4:H$21,5,FALSE) ->  | I75: =IF(D75<>'ARRS Summary'!B$30,"",IF(D75='ARRS Summary'!B$30,IF(G75=Data!B$5,Data!#REF!,IF(G75=Data!B$6,Data!#REF!,IF(G75=Data!B$7,Data!#REF!,IF(G75=Data!B$8,Data!#REF!,"")))))) -> 
H76: =VLOOKUP(D76,Data!F$4:H$21,5,FALSE) ->  | I76: =IF(D76<>'ARRS Summary'!B$30,"",IF(D76='ARRS Summary'!B$30,IF(G76=Data!B$5,Data!#REF!,IF(G76=Data!B$6,Data!#REF!,IF(G76=Data!B$7,Data!#REF!,IF(G76=Data!B$8,Data!#REF!,"")))))) -> 
H77: =VLOOKUP(D77,Data!F$4:H$21,5,FALSE) ->  | I77: =IF(D77<>'ARRS Summary'!B$30,"",IF(D77='ARRS Summary'!B$30,IF(G77=Data!B$5,Data!#REF!,IF(G77=Data!B$6,Data!#REF!,IF(G77=Data!B$7,Data!#REF!,IF(G77=Data!B$8,Data!#REF!,"")))))) -> 
H78: =VLOOKUP(D78,Data!F$4:H$21,5,FALSE) ->  | I78: =IF(D78<>'ARRS Summary'!B$30,"",IF(D78='ARRS Summary'!B$30,IF(G78=Data!B$5,Data!#REF!,IF(G78=Data!B$6,Data!#REF!,IF(G78=Data!B$7,Data!#REF!,IF(G78=Data!B$8,Data!#REF!,"")))))) -> 
H79: =VLOOKUP(D79,Data!F$4:H$21,5,FALSE) ->  | I79: =IF(D79<>'ARRS Summary'!B$30,"",IF(D79='ARRS Summary'!B$30,IF(G79=Data!B$5,Data!#REF!,IF(G79=Data!B$6,Data!#REF!,IF(G79=Data!B$7,Data!#REF!,IF(G79=Data!B$8,Data!#REF!,"")))))) -> 
H80: =VLOOKUP(D80,Data!F$4:H$21,5,FALSE) ->  | I80: =IF(D80<>'ARRS Summary'!B$30,"",IF(D80='ARRS Summary'!B$30,IF(G80=Data!B$5,Data!#REF!,IF(G80=Data!B$6,Data!#REF!,IF(G80=Data!B$7,Data!#REF!,IF(G80=Data!B$8,Data!#REF!,"")))))) -> 
H81: =VLOOKUP(D81,Data!F$4:H$21,5,FALSE) ->  | I81: =IF(D81<>'ARRS Summary'!B$30,"",IF(D81='ARRS Summary'!B$30,IF(G81=Data!B$5,Data!#REF!,IF(G81=Data!B$6,Data!#REF!,IF(G81=Data!B$7,Data!#REF!,IF(G81=Data!B$8,Data!#REF!,"")))))) -> 
H82: =VLOOKUP(D82,Data!F$4:H$21,5,FALSE) ->  | I82: =IF(D82<>'ARRS Summary'!B$30,"",IF(D82='ARRS Summary'!B$30,IF(G82=Data!B$5,Data!#REF!,IF(G82=Data!B$6,Data!#REF!,IF(G82=Data!B$7,Data!#REF!,IF(G82=Data!B$8,Data!#REF!,"")))))) -> 
H83: =VLOOKUP(D83,Data!F$4:H$21,5,FALSE) ->  | I83: =IF(D83<>'ARRS Summary'!B$30,"",IF(D83='ARRS Summary'!B$30,IF(G83=Data!B$5,Data!#REF!,IF(G83=Data!B$6,Data!#REF!,IF(G83=Data!B$7,Data!#REF!,IF(G83=Data!B$8,Data!#REF!,"")))))) -> 
H84: =VLOOKUP(D84,Data!F$4:H$21,5,FALSE) ->  | I84: =IF(D84<>'ARRS Summary'!B$30,"",IF(D84='ARRS Summary'!B$30,IF(G84=Data!B$5,Data!#REF!,IF(G84=Data!B$6,Data!#REF!,IF(G84=Data!B$7,Data!#REF!,IF(G84=Data!B$8,Data!#REF!,"")))))) -> 
H85: =VLOOKUP(D85,Data!F$4:H$21,5,FALSE) ->  | I85: =IF(D85<>'ARRS Summary'!B$30,"",IF(D85='ARRS Summary'!B$30,IF(G85=Data!B$5,Data!#REF!,IF(G85=Data!B$6,Data!#REF!,IF(G85=Data!B$7,Data!#REF!,IF(G85=Data!B$8,Data!#REF!,"")))))) -> 
H86: =VLOOKUP(D86,Data!F$4:H$21,5,FALSE) ->  | I86: =IF(D86<>'ARRS Summary'!B$30,"",IF(D86='ARRS Summary'!B$30,IF(G86=Data!B$5,Data!#REF!,IF(G86=Data!B$6,Data!#REF!,IF(G86=Data!B$7,Data!#REF!,IF(G86=Data!B$8,Data!#REF!,"")))))) -> 
H87: =VLOOKUP(D87,Data!F$4:H$21,5,FALSE) ->  | I87: =IF(D87<>'ARRS Summary'!B$30,"",IF(D87='ARRS Summary'!B$30,IF(G87=Data!B$5,Data!#REF!,IF(G87=Data!B$6,Data!#REF!,IF(G87=Data!B$7,Data!#REF!,IF(G87=Data!B$8,Data!#REF!,"")))))) -> 
H88: =VLOOKUP(D88,Data!F$4:H$21,5,FALSE) ->  | I88: =IF(D88<>'ARRS Summary'!B$30,"",IF(D88='ARRS Summary'!B$30,IF(G88=Data!B$5,Data!#REF!,IF(G88=Data!B$6,Data!#REF!,IF(G88=Data!B$7,Data!#REF!,IF(G88=Data!B$8,Data!#REF!,"")))))) -> 
H89: =VLOOKUP(D89,Data!F$4:H$21,5,FALSE) ->  | I89: =IF(D89<>'ARRS Summary'!B$30,"",IF(D89='ARRS Summary'!B$30,IF(G89=Data!B$5,Data!#REF!,IF(G89=Data!B$6,Data!#REF!,IF(G89=Data!B$7,Data!#REF!,IF(G89=Data!B$8,Data!#REF!,"")))))) -> 
H90: =VLOOKUP(D90,Data!F$4:H$21,5,FALSE) ->  | I90: =IF(D90<>'ARRS Summary'!B$30,"",IF(D90='ARRS Summary'!B$30,IF(G90=Data!B$5,Data!#REF!,IF(G90=Data!B$6,Data!#REF!,IF(G90=Data!B$7,Data!#REF!,IF(G90=Data!B$8,Data!#REF!,"")))))) -> 
H91: =VLOOKUP(D91,Data!F$4:H$21,5,FALSE) ->  | I91: =IF(D91<>'ARRS Summary'!B$30,"",IF(D91='ARRS Summary'!B$30,IF(G91=Data!B$5,Data!#REF!,IF(G91=Data!B$6,Data!#REF!,IF(G91=Data!B$7,Data!#REF!,IF(G91=Data!B$8,Data!#REF!,"")))))) -> 
H92: =VLOOKUP(D92,Data!F$4:H$21,5,FALSE) ->  | I92: =IF(D92<>'ARRS Summary'!B$30,"",IF(D92='ARRS Summary'!B$30,IF(G92=Data!B$5,Data!#REF!,IF(G92=Data!B$6,Data!#REF!,IF(G92=Data!B$7,Data!#REF!,IF(G92=Data!B$8,Data!#REF!,"")))))) -> 
H93: =VLOOKUP(D93,Data!F$4:H$21,5,FALSE) ->  | I93: =IF(D93<>'ARRS Summary'!B$30,"",IF(D93='ARRS Summary'!B$30,IF(G93=Data!B$5,Data!#REF!,IF(G93=Data!B$6,Data!#REF!,IF(G93=Data!B$7,Data!#REF!,IF(G93=Data!B$8,Data!#REF!,"")))))) -> 
H94: =VLOOKUP(D94,Data!F$4:H$21,5,FALSE) ->  | I94: =IF(D94<>'ARRS Summary'!B$30,"",IF(D94='ARRS Summary'!B$30,IF(G94=Data!B$5,Data!#REF!,IF(G94=Data!B$6,Data!#REF!,IF(G94=Data!B$7,Data!#REF!,IF(G94=Data!B$8,Data!#REF!,"")))))) -> 
H95: =VLOOKUP(D95,Data!F$4:H$21,5,FALSE) ->  | I95: =IF(D95<>'ARRS Summary'!B$30,"",IF(D95='ARRS Summary'!B$30,IF(G95=Data!B$5,Data!#REF!,IF(G95=Data!B$6,Data!#REF!,IF(G95=Data!B$7,Data!#REF!,IF(G95=Data!B$8,Data!#REF!,"")))))) -> 
H96: =VLOOKUP(D96,Data!F$4:H$21,5,FALSE) ->  | I96: =IF(D96<>'ARRS Summary'!B$30,"",IF(D96='ARRS Summary'!B$30,IF(G96=Data!B$5,Data!#REF!,IF(G96=Data!B$6,Data!#REF!,IF(G96=Data!B$7,Data!#REF!,IF(G96=Data!B$8,Data!#REF!,"")))))) -> 
H97: =VLOOKUP(D97,Data!F$4:H$21,5,FALSE) ->  | I97: =IF(D97<>'ARRS Summary'!B$30,"",IF(D97='ARRS Summary'!B$30,IF(G97=Data!B$5,Data!#REF!,IF(G97=Data!B$6,Data!#REF!,IF(G97=Data!B$7,Data!#REF!,IF(G97=Data!B$8,Data!#REF!,"")))))) -> 
H98: =VLOOKUP(D98,Data!F$4:H$21,5,FALSE) ->  | I98: =IF(D98<>'ARRS Summary'!B$30,"",IF(D98='ARRS Summary'!B$30,IF(G98=Data!B$5,Data!#REF!,IF(G98=Data!B$6,Data!#REF!,IF(G98=Data!B$7,Data!#REF!,IF(G98=Data!B$8,Data!#REF!,"")))))) -> 
H99: =VLOOKUP(D99,Data!F$4:H$21,5,FALSE) ->  | I99: =IF(D99<>'ARRS Summary'!B$30,"",IF(D99='ARRS Summary'!B$30,IF(G99=Data!B$5,Data!#REF!,IF(G99=Data!B$6,Data!#REF!,IF(G99=Data!B$7,Data!#REF!,IF(G99=Data!B$8,Data!#REF!,"")))))) -> 
H100: =VLOOKUP(D100,Data!F$4:H$21,5,FALSE) ->  | I100: =IF(D100<>'ARRS Summary'!B$30,"",IF(D100='ARRS Summary'!B$30,IF(G100=Data!B$5,Data!#REF!,IF(G100=Data!B$6,Data!#REF!,IF(G100=Data!B$7,Data!#REF!,IF(G100=Data!B$8,Data!#REF!,"")))))) -> 
H101: =VLOOKUP(D101,Data!F$4:H$21,5,FALSE) ->  | I101: =IF(D101<>'ARRS Summary'!B$30,"",IF(D101='ARRS Summary'!B$30,IF(G101=Data!B$5,Data!#REF!,IF(G101=Data!B$6,Data!#REF!,IF(G101=Data!B$7,Data!#REF!,IF(G101=Data!B$8,Data!#REF!,"")))))) ->  | K101: =IF(J101="","",J101/37.5) ->  | P101: =IF(N101="","",SUM(N101:O101)) ->  | S101: =IF(Q101="","",SUM(Q101:R101)) ->  | V101: =IF(T101="","",SUM(T101:U101)) ->  | Y101: =IF(W101="","",SUM(W101:X101)) ->  | AB101: =IF(Z101="","",SUM(Z101:AA101)) ->  | AE101: =IF(AC101="","",SUM(AC101:AD101)) ->  | AH101: =IF(AF101="","",SUM(AF101:AG101)) ->  | AK101: =IF(AI101="","",SUM(AI101:AJ101)) ->  | AN101: =IF(AL101="","",SUM(AL101:AM101)) ->  | AQ101: =IF(AO101="","",SUM(AO101:AP101)) ->  | AT101: =IF(AR101="","",SUM(AR101:AS101)) ->  | AW101: =IF(AU101="","",SUM(AU101:AV101)) -> 
H102: =VLOOKUP(D102,Data!F$4:H$21,5,FALSE) ->  | I102: =IF(D102<>'ARRS Summary'!B$30,"",IF(D102='ARRS Summary'!B$30,IF(G102=Data!B$5,Data!#REF!,IF(G102=Data!B$6,Data!#REF!,IF(G102=Data!B$7,Data!#REF!,IF(G102=Data!B$8,Data!#REF!,"")))))) -> 
H103: =VLOOKUP(D103,Data!F$4:H$21,5,FALSE) ->  | I103: =IF(D103<>'ARRS Summary'!B$30,"",IF(D103='ARRS Summary'!B$30,IF(G103=Data!B$5,Data!#REF!,IF(G103=Data!B$6,Data!#REF!,IF(G103=Data!B$7,Data!#REF!,IF(G103=Data!B$8,Data!#REF!,"")))))) -> 
H104: =VLOOKUP(D104,Data!F$4:H$21,5,FALSE) ->  | I104: =IF(D104<>'ARRS Summary'!B$30,"",IF(D104='ARRS Summary'!B$30,IF(G104=Data!B$5,Data!#REF!,IF(G104=Data!B$6,Data!#REF!,IF(G104=Data!B$7,Data!#REF!,IF(G104=Data!B$8,Data!#REF!,"")))))) -> 
H105: =VLOOKUP(D105,Data!F$4:H$21,5,FALSE) ->  | I105: =IF(D105<>'ARRS Summary'!B$30,"",IF(D105='ARRS Summary'!B$30,IF(G105=Data!B$5,Data!#REF!,IF(G105=Data!B$6,Data!#REF!,IF(G105=Data!B$7,Data!#REF!,IF(G105=Data!B$8,Data!#REF!,"")))))) -> 
H106: =VLOOKUP(D106,Data!F$4:H$21,5,FALSE) ->  | I106: =IF(D106<>'ARRS Summary'!B$30,"",IF(D106='ARRS Summary'!B$30,IF(G106=Data!B$5,Data!#REF!,IF(G106=Data!B$6,Data!#REF!,IF(G106=Data!B$7,Data!#REF!,IF(G106=Data!B$8,Data!#REF!,"")))))) -> 

Sheet All Funding Streams (hidden)
B1: ="Known National PCN Funding Streams - Indicative Values (2023/24) for "&Home!D4 -> Known National PCN Funding Streams - Indicative Values (2023/24) for
B4: Funding Stream | C4: Basis | D4: Paid to | E4: Calculated as | G4: PCN Total | H4: Monthly | I4: Notes
B5: Core PCN Funding | C5: Actual | D5: PCN | E5: £1.50 per reg'd pt | G5: =IF(Home!D4="","",1.5*Home!K4) ->  | H5: =IF(G5="","",G5/12) ->  | I5: Use of funding at PCN discretion
B6: Clinical Director Funding | C6: Actual | D6: PCN | E6: £0.729 per reg'd pt | G6: =IF(G5="","",(0.729*Home!K4)) ->  | H6: =IF(G6="","",G6/12) ->  | I6: Use of funding at PCN discretion
B7: Leadership and Management | C7: Actual | D7: PCN | E7: £0.684 per adjusted pt | G7: =IF(G5="","",(0.684*Home!L4)) ->  | H7: =IF(G7="","",G7/12) ->  | I7: Use of funding at PCN discretion
B8: Enhanced Access | C8: Actual | D8: PCN | E8: £7.578 per adjusted pt | G8: =IF(G7="","",7.578*Home!L4) ->  | H8: =IF(G8="","",G8/12) ->  | I8: Delivery plan approved by ICB for each PCN
B9: Care Home Premium | C9: Indicative | D9: PCN | E9: Enter Bed Nos: | G9: =IF(F9="","Enter beds",F9*120) -> Enter beds | H9: =IF(G9="Enter beds",0,G9/12) -> 0 | I9: Please enter indicative CQC bed numbers for the year to calculate
B10: Investment and Impact Fund | C10: Indicative | D10: PCN | E10: Personalise on IIF tab | G10: =IF(G7="","",IIF!I7) ->  | I10: Not paid monthly. Actuals based on performance & prevalence (See IIF tab). Paid Summer 2024
B11: Capacity and Access Support | C11: Actual | D11: PCN | E11: £2.765 per adjusted pt | G11: =IF(Home!$K$4="","",2.765*Home!$L$4) ->  | H11: =IF(G11="","",G11/12) ->  | I11: Will be paid in monthly instalments
B12: Capacity and Access Improvement | C12: Indicative | D12: PCN | E12: £1.185 per adjusted pt | G12: =IF(Home!$K$4="","",1.185*Home!$L$4) ->  | I12: Not paid monthly. Actuals based on ICB assessment of PCNs improvement plan. Paid Summer 2024
B13: Network Participation Payment | C13: Actual | D13: Practices | E13: £1.761 per weighted pt | G13: =IF(G7="","",Home!J4*1.761) ->  | H13: =IF(G13="","",G13/12) ->  | I13: Paid directly to practices, not PCN account
B14: PLUS: Local PCN Funding Streams
B15: Transformation Funding | C15: Indicative | D15: PCN | E15: c.£1.99 per 2016 reg'd pts | G15: =IF(G7="","",(1.99467)*(VLOOKUP(Home!D4,PCNs[#All],4,FALSE))) ->  | H15: =IF(G15="","",G15/12) ->  | I15: This has been inflated by 2.9% for 2023/24 and is under an MoU with the ICS
E17: Total of non ARR: | G17: =IF(G5="","",SUM(G5:G15)) -> 
E18: PLUS ARR: | G18: ='ARRS Summary'!D6 -> 
E19: Total of all funding: | G19: =SUM(G17:G18) -> 0
B21: Other funding for Gloucestershire PCNs include: Quality Improvement, Primary Care Training Hub initiatives (e.g. HEE education funding) and PCN Development Funds. To check your PCN has accessed all available funds, contact the ICB PCN team at their mailbox.

Sheet IIF (hidden)
B1: =IF(Home!D4="","IIF Indicator Summary 23/24","IIF Indicator - summary for 23/24 for "&Home!D4 & " (NOTE: Remember that actual income also dependent upon prevalence)" ) -> IIF Indicator Summary 23/24 | C1: Lower Threshold | D1: Upper Threshold | E1: Points | F1: Desired Direction | G1: Approx max income/ indicator | H1: Target PCN aiming for | I1: Approx. income for chosen target
B2: ACC-08: % of appointments where time from booking to appointment was two weeks or less | C2: 0.85 | D2: 0.9 | E2: 71 | F2: Up | G2: =IF(Home!$D$4="",E2*198,E2*198/49000*Home!$K$4) -> 14058 | H2: 0.9 | I2: =IF(H2>=D2,G2,IF(H2<=C2,0,ROUND((E2/SUM(D2-C2)),0)*(H2-C2)*(G2/E2))) -> 14058
B3: CAN-02: % of lower GI 2-wk wait (fast track) cancer referrals accompanied by a FIT result, with the result recorded either in the 21 days leading up to the referral | C3: 0.65 | D3: 0.8 | E3: 22 | F3: Up | G3: =IF(Home!$D$4="",E3*198,E3*198/49000*Home!$K$4) -> 4356 | H3: 0.8 | I3: =IF(IF(H3>=D3,G3,IF(H3<=C3,0,ROUND((E3/SUM(D3-C3)),0)*(H3-C3)*(G3/E3)))>G3,G3,IF(H3>=D3,G3,IF(H3<=C3,0,ROUND((E3/SUM(D3-C3)),0)*(H3-C3)*(G3/E3)))) -> 4356
B4: HI-03: % of QOF reg'd LD patients >=14y with annual LD H/Check and completed Health Action Plan in addition to recording of ethnicity | C4: 0.6 | D4: 0.8 | E4: 36 | F4: Up | G4: =IF(Home!$D$4="",E4*198,E4*198/49000*Home!$K$4) -> 7128 | H4: 0.8 | I4: 7128
B5: VI-02: % 18-64y + clinical at-risk received a flu vaccination 01/09/23-31/03/24 | C5: 0.72 | D5: 0.9 | E5: 113 | F5: Up | G5: =IF(Home!$D$4="",E5*198,E5*198/49000*Home!$K$4) -> 22374 | H5: 0.9 | I5: 22374
B6: VI-03: % 2-3y (on 31/08/23) received a flu vaccination 01/09/23-31/03/24 | C6: 0.64 | D6: 0.82 | E6: 20 | F6: Up | G6: =IF(Home!$D$4="",E6*198,E6*198/49000*Home!$K$4) -> 3960 | H6: 0.82 | I6: =IF(IF(H6>=D6,G6,IF(H6<=C6,0,ROUND((E6/SUM(D6-C6)),0)*(H6-C6)*(G6/E6)))>G6,G6,IF(H6>=D6,G6,IF(H6<=C6,0,ROUND((E6/SUM(D6-C6)),0)*(H6-C6)*(G6/E6)))) -> 3960
E7: =SUM(E2:E6) -> 262 | G7: =SUM(G2:G6) -> 51876 | I7: =SUM(I2:I6) -> 51876

Sheet Data (hidden)
B3: MHP Bands Dropdown | D3: Months Dropdown | F3: Role | G3: AfC Band | H3: 2023/24 | J3: PCN | K3: W. List (Jan 23) | L3: Actual List Size (Jan 23) | M3: 2016 reg'd pop'n | N3: Adj'd pop'n 23/24
B4: 4 | D4: April | F4: Clinical Pharmacist | G4: 7-8a | H4: 59312 | J4: Aspen | K4: 30142.25 | L4: 30560 | M4: 29694 | N4: 31488.51401
B5: 5 | D5: May | F5: Pharmacy Technician | G5: 5 | H5: 38187 | J5: Berkeley Vale | K5: 49627.85 | L5: =42304+5284 -> 47588 | M5: 43861 | N5: 45133.92701
B6: 6 | D6: June | F6: Paramedic | G6: 7 | H6: 57465 | J6: Central | K6: 52829.48 | L6: 57201 | M6: 52342 | N6: 54371.84302
B7: 7 | D7: July | F7: Physiotherapist | G7: 7-8a | H7: 59312 | J7: Forest of Dean | K7: 73727.02 | L7: 65608 | M7: 62864 | N7: 67099.54934
B8: 8a | D8: Aug | F8: Social Prescribing Link Worker | G8: 5 | H8: =H5 -> 38187 | J8: Hadwen & Quedgeley | K8: 22512.08 | L8: 25380 | M8: 23178 | N8: 23509.30817
D9: Sept | F9: Care Coordinator | G9: 4 | H9: 31746 | J9: Inner City | K9: 33378.74 | L9: 35086 | M9: 32119 | N9: 36584.5006
D10: Oct | F10: Health and Wellbeing Coach | G10: 5 | H10: =H5 -> 38187 | J10: North Cotswolds | K10: 37550.53 | L10: 32839 | M10: 28967 | N10: 33772.34055
B11: IIF Binary Indicator | D11: Nov | F11: Nursing Associate | G11: 4 | H11: =H9 -> 31746 | J11: NSG | K11: 55019.21 | L11: 55465 | M11: 51933 | N11: 53324.01124
B12: Yes | D12: Dec | F12: Trainee Nursing Associate | G12: 3 | H12: 28177 | J12: Peripheral | K12: 53368.82 | L12: 54466 | M12: 50522 | N12: 52281.85633
B13: No | D13: Jan | F13: GP Assistant (GPA) | G13: 4 | H13: =H11 -> 31746 | J13: Rosebank | K13: 34689.75 | L13: 38199 | M13: 32675 | N13: 36300.51087
D14: Feb | F14: Physician Associate | G14: 7 | H14: =H6 -> 57465 | J14: Severn Health | K14: 39010.18 | L14: 38436 | M14: 36231 | N14: 37106.4
D15: Mar | F15: Apprentice Physician Associate | G15: 5 | H15: =H10 -> 38187 | J15: South Cotswolds | K15: 63837.19 | L15: 61730 | M15: 58074 | N15: 59603.03128
F16: Occupational Therapists | G16: 7 | H16: =H14 -> 57465 | J16: St Pauls | K16: 45259.23 | L16: 47486 | M16: 49501 | N16: 46003.7532
F17: Dietitians | G17: 7 | H17: =H16 -> 57465 | J17: Stroud Cotswolds | K17: 40676.08 | L17: 40494 | M17: 39396 | N17: 39050.82027
F18: Podiatrists | G18: 7 | H18: =H17 -> 57465 | J18: TWNS | K18: 51325.93 | L18: 50762 | M18: 44643 | N18: 50346.76006
F19: Advanced Practitioner | G19: 8a | H19: 65002 | J19: Gloucestershire | K19: =SUM(K4:K18) -> 682954.34 | L19: 681300 | M19: =SUM(M4:M18) -> 636000 | N19: 665977.1259
F20: Digital Transformation Lead | G20: 8a | H20: =H19 -> 65002
F21: Mental Health Practitioner | G21: 6 | H21: =23551*2 -> 47102
